Workbook

Sheet Raumverzeichnis
A1: Raumverzeichnis | AJ1: 643
A2: BwDLZ | E2: Ingolstadt | H2: Stand | O2: 2026-01-13 | Q2: erstellt mit Version V_05 09/2012 | AL2: 2026-01-13 | AM2: Keine Datenübernahme möglich
A3: OM/Außenstelle | E3: Pionierübungsplatz L/w | H3: Objektmanager/~in | O3: Achatz | Q3: Datenbasis, Stand vom: 08.01.2026
A4: AbrBer / Lg-Nummer / Lg-Bezeichnung / (Anz. Häuser) | E4: 1 3615 (14)
A5: Anzahl Räume gesamt | E5: =SUM($P5:$S5) -> 68 | F5: Anzahl Räume je Reinigungshäufigkeit | P5: =IF(SUM(P15:P82)=0,"",COUNTIF(P15:P82,">0")) -> 16 | Q5: 3 | R5: 15 | S5: 34
A6: m² einfache Reinigungsfläche gesamt | E6: 1361.98 | F6: m² einfache Bodenfläche je Reinigungshäufigkeit | P6: =IF(SUM(P15:P82)=0,"",SUM(P15:P82)) -> 156.99 | Q6: 8.58 | R6: 429.22 | S6: 767.19 | AM6: =IF(SUM(AM15:AM82)=0,"",AVERAGE(AM15:AM82)) -> 
A7: m² monatliche Reinigungsfläche gesamt | E7: 10470.57 | F7: m² monatliche Reinigungsfläche je Reinigungshäufigkeit | P7: =IF(OR(P6="",P11=""),"",P6*P11/12) -> 3289.33 | Q7: 107.86 | R7: 3739.94 | S7: 3333.44
A8: m² jährliche Reinigungsfläche gesamt | E8: 125646.84 | F8: m² jährliche Reinigungsfläche je Reinigungshäufigkeit | P8: =IF(P7="","",P7*12) -> 39471.96 | Q8: 1294.32 | R8: 44879.28 | S8: 40001.28
A9: Anzahl Räume nach Filter | E9: 68 | F9: Teilergebnisse (Summenbildung mit Autofilter) | P9: =IF(P11="","",SUBTOTAL(2,P15:P82)) -> 16 | Q9: 3 | R9: 15 | S9: 34
A10: m² einfache Bodenfläche nach Filter | E10: 1361.98 | F10: Teilergebnis, m² Fußbodenfläche, gesamt | P10: =IF(P11="","",SUBTOTAL(9,P15:P82)) -> 156.99 | Q10: 8.58 | R10: 429.22 | S10: 767.19 | AL10: AnzReinH | AM10: AnzRH_SonderR | AO10: AnzZeilen | AP10: AnzAbrBer | AQ10: Anzahl Lg | AR10: AnzLose | AS10: Typ der Quelldatei
A11: Anzahl kalkulatorische Reinigungstage nach Filter | E11: 558.99 | F11: kalkulatorische Reinigungstage, jährlich | P11: =IF(RIGHT(P13,3)="xwö",IF(VALUE(LEFT(P13,LEN(P13)-3))>7,VALUE(LEFT(P13,LEN(P13)-3))*52.14283,CHOOSE(VALUE(LEFT(P13,LEN(P13)-3)),52.14283,104.56,150.86,201.14,251.43,302.72,365)),IF(RIGHT(P13,4)="xmtl",VALUE(LEFT(P13,1))*12,IF(RIGHT(P13,3)="xjl",VALUE(LEFT(P13,1)/12),""))) -> 251.43 | Q11: 150.86 | R11: 104.56 | S11: 52.14 | AL11: 3 | AM11: 0 | AO11: 68 | AP11: 1 | AQ11: 1 | AR11: 0 | AS11: BewLgZ
H12: Reinigungszeit | P12: Fußbodenfläche in m² nach Reinigungshäufigkeit | AM12: Mo | AN12: Di | AO12: Mi | AP12: Do | AQ12: Fr | AR12: Sa | AS12: So
A13: AbrBer | B13: Gebäude | C13: Geschoss | D13: Raum- nummer | E13: Raumbezeichnung | F13: Nutzungsart Bezeichnung DIN 277 | G13: Fußbodenart Bezeichnung DIN 277 | H13: Mo | I13: Di | J13: Mi | K13: Do | L13: Fr | M13: Sa | N13: So | O13: Tageszeit oder Termin n.wö.Rein | P13: 5xwö | Q13: 3xwö | R13: 2xwö | S13: 1xwö | AK13: Soll/Ist Diff.: (nur wö. RH) | AL13: =SUM(AM13:BC13) -> 0 | AM13: =IF(RIGHT(P$13,3)="xwö",SUMIF($AM$15:$AM$82,P$13,$AN$15:$AO$82)-SUMIF($AM$15:$AM$82,P$13,$AO$15:$AO$82),0) -> 0 | AN13: 0 | AO13: 0 | AP13: 0 | AQ13: 0 | AR13: 0 | AS13: 0 | AT13: 0 | AU13: 0 | AV13: 0 | AW13: 0 | AX13: 0 | AY13: 0 | AZ13: 0 | BA13: 0 | BB13: 0 | BC13: 0
A14: 1 | B14: =A14+1 -> 2 | C14: 3 | D14: 4 | E14: 5 | F14: 6 | G14: 7 | H14: 8 | I14: 9 | J14: 10 | K14: 11 | L14: 12 | M14: 13 | N14: 14 | O14: 15 | P14: 16 | Q14: 17 | R14: 18 | S14: 19 | AJ14: Vergleichs- und Sortierstring | AK14: LGNR/WE-NR | AL14: FBFl | AM14: Reinigungshäufigkeiten | AN14: Erste Stelle von Spalte AM | AO14: Summe ReinTage | AP14: AbrBer | AQ14: LgNr | AR14: Liegenschaftsbezeichnung | AS14: Anz. Räume mit fehlender ReinH | AT14: Anz. Räume ohne Raumbezeichnung | AU14: Anz. Räume mit fehlender FußBodenBez. | AV14: Anz. Räume mit unbekannter ReinH | AW14: Anz. Räume mit falscher ReinH | AX14: Anz. Räume mit Fußbodenfläche = 0 | AY14: Anz. Räume ohne Reinigung durch | AZ14: Anz. Räume mit ungültigen Fensterdaten | BA14: Anz. Räume mit ReinH zum Raum Falsch | BH14: AbrBer | BI14: Haus | BJ14: Fußbodenfläche | BK14: Mo | BL14: Di | BM14: Mi | BN14: Do | BO14: Fr | BP14: Sa | BQ14: So | BR14: Leistungsansatz | BS14: Mo | BT14: Di | BU14: Mi | BV14: Do | BW14: Fr | BX14: Sa | BY14: So | CA14: Mo | CB14: Di | CC14: Mi | CD14: Do | CE14: Fr | CF14: Sa | CG14: So
A15: 1 | B15: 1 | C15: EG | D15: 1A | F15: 2.0 Büroarbeit | G15: Z.FB0220 Hartbelag | J15: 1 | O15: =IF($AN15=0,IF(AND($S15<> 0, LEFT($S$13, 3)="nur"), "Sonderreinigungfläche","Reinigungstag fehlt"),"") ->  | S15: 12 | AJ15: 1 3615 0001- 222EG 000100A 2.0 | AK15: 3615 | AL15: 12 | AM15: 1xwö | AN15: 1 | AO15: =SUM(H15:N15) -> 1 | AP15: 1 | AQ15: 3615 | AS15: 0 | AT15: 0 | AU15: 0 | AV15: 0 | AX15: 0 | AY15: 0 | AZ15: 0 | BA15: 3 | BH15: =A15 -> 1 | BI15: =B15 -> 1 | BJ15: =SUM($P15:$S15) -> 12 | BK15: =$BJ15*H15 -> 0 | BL15: =$BJ15*I15 -> 0 | BM15: =$BJ15*J15 -> 12 | BN15: =$BJ15*K15 -> 0 | BO15: =$BJ15*L15 -> 0 | BP15: =$BJ15*M15 -> 0 | BQ15: =$BJ15*N15 -> 0 | BS15: =H15 -> 0 | BT15: =I15 -> 0 | BU15: =J15 -> 1 | BV15: =K15 -> 0 | BW15: =L15 -> 0 | BX15: =M15 -> 0 | BY15: =N15 -> 0 | CA15: =IF($BR15=0,0,ROUNDUP(BK15/$BR15,3)) -> 0 | CB15: =IF($BR15=0,0,ROUNDUP(BL15/$BR15,3)) -> 0 | CC15: =IF($BR15=0,0,ROUNDUP(BM15/$BR15,3)) -> 0 | CD15: =IF($BR15=0,0,ROUNDUP(BN15/$BR15,3)) -> 0 | CE15: =IF($BR15=0,0,ROUNDUP(BO15/$BR15,3)) -> 0 | CF15: =IF($BR15=0,0,ROUNDUP(BP15/$BR15,3)) -> 0 | CG15: =IF($BR15=0,0,ROUNDUP(BQ15/$BR15,3)) -> 0
A16: 1 | B16: 1 | C16: EG | D16: 1B | F16: 2.0 Büroarbeit | G16: Z.FB0220 Hartbelag | J16: 1 | S16: 12 | AJ16: 1 3615 0001- 222EG 000100B 2.0 | AK16: 3615 | AL16: 12 | AM16: 1xwö | AN16: 1 | AO16: 1 | BH16: 1 | BI16: 1 | BJ16: 12 | BK16: 0 | BL16: 0 | BM16: 12 | BN16: 0 | BO16: 0 | BP16: 0 | BQ16: 0 | BS16: 0 | BT16: 0 | BU16: 1 | BV16: 0 | BW16: 0 | BX16: 0 | BY16: 0 | CA16: 0 | CB16: 0 | CC16: 0 | CD16: 0 | CE16: 0 | CF16: 0 | CG16: 0
A17: 1 | B17: 1 | C17: EG | D17: 5A | F17: 2.0 Büroarbeit | G17: Z.FB0220 Hartbelag | J17: 1 | S17: 12 | AJ17: 1 3615 0001- 222EG 000500A 2.0 | AK17: 3615 | AL17: 12 | AM17: 1xwö | AN17: 1 | AO17: 1 | BH17: 1 | BI17: 1 | BJ17: 12 | BK17: 0 | BL17: 0 | BM17: 12 | BN17: 0 | BO17: 0 | BP17: 0 | BQ17: 0 | BS17: 0 | BT17: 0 | BU17: 1 | BV17: 0 | BW17: 0 | BX17: 0 | BY17: 0 | CA17: 0 | CB17: 0 | CC17: 0 | CD17: 0 | CE17: 0 | CF17: 0 | CG17: 0
A18: 1 | B18: 2 | C18: EG | D18: 01 | F18: 2.0 Büroarbeit | G18: Z.FB0020 Estrich | J18: 1 | S18: 7.2 | AJ18: 1 3615 0002- 222EG 000100 2.0 | AK18: 3615 | AL18: 7.2 | AM18: 1xwö | AN18: 1 | AO18: 1 | BH18: 1 | BI18: 2 | BJ18: 7.2 | BK18: 0 | BL18: 0 | BM18: 7.2 | BN18: 0 | BO18: 0 | BP18: 0 | BQ18: 0 | BS18: 0 | BT18: 0 | BU18: 1 | BV18: 0 | BW18: 0 | BX18: 0 | BY18: 0 | CA18: 0 | CB18: 0 | CC18: 0 | CD18: 0 | CE18: 0 | CF18: 0 | CG18: 0
A19: 1 | B19: 2 | C19: EG | D19: 02 | F19: 9.0 Verkehrsfläche | G19: Z.FB0020 Estrich | J19: 1 | S19: 3.91 | AJ19: 1 3615 0002- 222EG 000200 9.0 | AK19: 3615 | AL19: 3.91 | AM19: 1xwö | AN19: 1 | AO19: 1 | BH19: 1 | BI19: 2 | BJ19: 3.91 | BK19: 0 | BL19: 0 | BM19: 3.91 | BN19: 0 | BO19: 0 | BP19: 0 | BQ19: 0 | BS19: 0 | BT19: 0 | BU19: 1 | BV19: 0 | BW19: 0 | BX19: 0 | BY19: 0 | CA19: 0 | CB19: 0 | CC19: 0 | CD19: 0 | CE19: 0 | CF19: 0 | CG19: 0
A20: 1 | B20: 2 | C20: EG | D20: 04 | F20: 7.1 Sanitärräume | G20: Z.FB0060 keramische Fliesen/Platten | H20: 1 | I20: 1 | J20: 1 | K20: 1 | L20: 1 | P20: 1.69 | AJ20: 1 3615 0002- 222EG 000400 7.1 | AK20: 3615 | AL20: 1.69 | AM20: 5xwö | AN20: 5 | AO20: 5 | BH20: 1 | BI20: 2 | BJ20: 1.69 | BK20: 1.69 | BL20: 1.69 | BM20: 1.69 | BN20: 1.69 | BO20: 1.69 | BP20: 0 | BQ20: 0 | BS20: 1 | BT20: 1 | BU20: 1 | BV20: 1 | BW20: 1 | BX20: 0 | BY20: 0 | CA20: 0 | CB20: 0 | CC20: 0 | CD20: 0 | CE20: 0 | CF20: 0 | CG20: 0
A21: 1 | B21: 2 | C21: EG | D21: 05 | F21: 7.1 Sanitärräume | G21: Z.FB0060 keramische Fliesen/Platten | H21: 1 | I21: 1 | J21: 1 | K21: 1 | L21: 1 | P21: 8.96 | AJ21: 1 3615 0002- 222EG 000500 7.1 | AK21: 3615 | AL21: 8.96 | AM21: 5xwö | AN21: 5 | AO21: 5 | BH21: 1 | BI21: 2 | BJ21: 8.96 | BK21: 8.96 | BL21: 8.96 | BM21: 8.96 | BN21: 8.96 | BO21: 8.96 | BP21: 0 | BQ21: 0 | BS21: 1 | BT21: 1 | BU21: 1 | BV21: 1 | BW21: 1 | BX21: 0 | BY21: 0 | CA21: 0 | CB21: 0 | CC21: 0 | CD21: 0 | CE21: 0 | CF21: 0 | CG21: 0
A22: 1 | B22: 3 | C22: EG | D22: 11A | F22: 2.0 Büroarbeit | G22: Z.FB0220 Hartbelag | J22: 1 | S22: 15 | AJ22: 1 3615 0003- 222EG 001100A 2.0 | AK22: 3615 | AL22: 15 | AM22: 1xwö | AN22: 1 | AO22: 1 | BH22: 1 | BI22: 3 | BJ22: 15 | BK22: 0 | BL22: 0 | BM22: 15 | BN22: 0 | BO22: 0 | BP22: 0 | BQ22: 0 | BS22: 0 | BT22: 0 | BU22: 1 | BV22: 0 | BW22: 0 | BX22: 0 | BY22: 0 | CA22: 0 | CB22: 0 | CC22: 0 | CD22: 0 | CE22: 0 | CF22: 0 | CG22: 0
A23: 1 | B23: 4 | C23: EG | D23: 02 | F23: 2.0 Büroarbeit | G23: Z.FB0010 Anstrich/Lack | J23: 1 | S23: 98.66 | AJ23: 1 3615 0004- 222EG 000200 2.0 | AK23: 3615 | AL23: 98.66 | AM23: 1xwö | AN23: 1 | AO23: 1 | BH23: 1 | BI23: 4 | BJ23: 98.66 | BK23: 0 | BL23: 0 | BM23: 98.66 | BN23: 0 | BO23: 0 | BP23: 0 | BQ23: 0 | BS23: 0 | BT23: 0 | BU23: 1 | BV23: 0 | BW23: 0 | BX23: 0 | BY23: 0 | CA23: 0 | CB23: 0 | CC23: 0 | CD23: 0 | CE23: 0 | CF23: 0 | CG23: 0
A24: 1 | B24: 4 | C24: EG | D24: 03 | F24: 2.0 Büroarbeit | G24: Z.FB0010 Anstrich/Lack | J24: 1 | S24: 23.54 | AJ24: 1 3615 0004- 222EG 000300 2.0 | AK24: 3615 | AL24: 23.54 | AM24: 1xwö | AN24: 1 | AO24: 1 | BH24: 1 | BI24: 4 | BJ24: 23.54 | BK24: 0 | BL24: 0 | BM24: 23.54 | BN24: 0 | BO24: 0 | BP24: 0 | BQ24: 0 | BS24: 0 | BT24: 0 | BU24: 1 | BV24: 0 | BW24: 0 | BX24: 0 | BY24: 0 | CA24: 0 | CB24: 0 | CC24: 0 | CD24: 0 | CE24: 0 | CF24: 0 | CG24: 0
A25: 1 | B25: 4 | C25: EG | D25: 04 a | F25: 2.0 Büroarbeit | G25: Z.FB0010 Anstrich/Lack | J25: 1 | S25: 23.51 | AJ25: 1 3615 0004- 222EG 000400a 2.0 | AK25: 3615 | AL25: 23.51 | AM25: 1xwö | AN25: 1 | AO25: 1 | BH25: 1 | BI25: 4 | BJ25: 23.51 | BK25: 0 | BL25: 0 | BM25: 23.51 | BN25: 0 | BO25: 0 | BP25: 0 | BQ25: 0 | BS25: 0 | BT25: 0 | BU25: 1 | BV25: 0 | BW25: 0 | BX25: 0 | BY25: 0 | CA25: 0 | CB25: 0 | CC25: 0 | CD25: 0 | CE25: 0 | CF25: 0 | CG25: 0
A26: 1 | B26: 4 | C26: EG | D26: 04 b | F26: 2.0 Büroarbeit | G26: Z.FB0010 Anstrich/Lack | J26: 1 | S26: 23.57 | AJ26: 1 3615 0004- 222EG 000400b 2.0 | AK26: 3615 | AL26: 23.57 | AM26: 1xwö | AN26: 1 | AO26: 1 | BH26: 1 | BI26: 4 | BJ26: 23.57 | BK26: 0 | BL26: 0 | BM26: 23.57 | BN26: 0 | BO26: 0 | BP26: 0 | BQ26: 0 | BS26: 0 | BT26: 0 | BU26: 1 | BV26: 0 | BW26: 0 | BX26: 0 | BY26: 0 | CA26: 0 | CB26: 0 | CC26: 0 | CD26: 0 | CE26: 0 | CF26: 0 | CG26: 0
A27: 1 | B27: 4 | C27: EG | D27: 05 | F27: 1.0 Wohnen und Aufenthalt | G27: Z.FB0010 Anstrich/Lack | H27: 1 | J27: 1 | R27: 35.28 | AJ27: 1 3615 0004- 222EG 000500 1.0 | AK27: 3615 | AL27: 35.28 | AM27: 2xwö | AN27: 2 | AO27: 2 | BH27: 1 | BI27: 4 | BJ27: 35.28 | BK27: 35.28 | BL27: 0 | BM27: 35.28 | BN27: 0 | BO27: 0 | BP27: 0 | BQ27: 0 | BS27: 1 | BT27: 0 | BU27: 1 | BV27: 0 | BW27: 0 | BX27: 0 | BY27: 0 | CA27: 0 | CB27: 0 | CC27: 0 | CD27: 0 | CE27: 0 | CF27: 0 | CG27: 0
A28: 1 | B28: 4 | C28: EG | D28: 06 | F28: 7.2 Umkleiden | G28: Z.FB0010 Anstrich/Lack | H28: 1 | J28: 1 | R28: 23.54 | AJ28: 1 3615 0004- 222EG 000600 7.2 | AK28: 3615 | AL28: 23.54 | AM28: 2xwö | AN28: 2 | AO28: 2 | BH28: 1 | BI28: 4 | BJ28: 23.54 | BK28: 23.54 | BL28: 0 | BM28: 23.54 | BN28: 0 | BO28: 0 | BP28: 0 | BQ28: 0 | BS28: 1 | BT28: 0 | BU28: 1 | BV28: 0 | BW28: 0 | BX28: 0 | BY28: 0 | CA28: 0 | CB28: 0 | CC28: 0 | CD28: 0 | CE28: 0 | CF28: 0 | CG28: 0
A29: 1 | B29: 4 | C29: EG | D29: 07 | F29: 7.1 Sanitärräume | G29: Z.FB0060 keramische Fliesen/Platten | H29: 1 | I29: 1 | J29: 1 | K29: 1 | L29: 1 | P29: 18.18 | AJ29: 1 3615 0004- 222EG 000700 7.1 | AK29: 3615 | AL29: 18.18 | AM29: 5xwö | AN29: 5 | AO29: 5 | BH29: 1 | BI29: 4 | BJ29: 18.18 | BK29: 18.18 | BL29: 18.18 | BM29: 18.18 | BN29: 18.18 | BO29: 18.18 | BP29: 0 | BQ29: 0 | BS29: 1 | BT29: 1 | BU29: 1 | BV29: 1 | BW29: 1 | BX29: 0 | BY29: 0 | CA29: 0 | CB29: 0 | CC29: 0 | CD29: 0 | CE29: 0 | CF29: 0 | CG29: 0
A30: 1 | B30: 4 | C30: EG | D30: 08 | F30: 7.1 Sanitärräume | G30: Z.FB0060 keramische Fliesen/Platten | H30: 1 | I30: 1 | J30: 1 | K30: 1 | L30: 1 | P30: 21.23 | AJ30: 1 3615 0004- 222EG 000800 7.1 | AK30: 3615 | AL30: 21.23 | AM30: 5xwö | AN30: 5 | AO30: 5 | BH30: 1 | BI30: 4 | BJ30: 21.23 | BK30: 21.23 | BL30: 21.23 | BM30: 21.23 | BN30: 21.23 | BO30: 21.23 | BP30: 0 | BQ30: 0 | BS30: 1 | BT30: 1 | BU30: 1 | BV30: 1 | BW30: 1 | BX30: 0 | BY30: 0 | CA30: 0 | CB30: 0 | CC30: 0 | CD30: 0 | CE30: 0 | CF30: 0 | CG30: 0
A31: 1 | B31: 4 | C31: EG | D31: 09 | F31: 7.1 Sanitärräume | G31: Z.FB0060 keramische Fliesen/Platten | H31: 1 | I31: 1 | J31: 1 | K31: 1 | L31: 1 | P31: 7.62 | AJ31: 1 3615 0004- 222EG 000900 7.1 | AK31: 3615 | AL31: 7.62 | AM31: 5xwö | AN31: 5 | AO31: 5 | BH31: 1 | BI31: 4 | BJ31: 7.62 | BK31: 7.62 | BL31: 7.62 | BM31: 7.62 | BN31: 7.62 | BO31: 7.62 | BP31: 0 | BQ31: 0 | BS31: 1 | BT31: 1 | BU31: 1 | BV31: 1 | BW31: 1 | BX31: 0 | BY31: 0 | CA31: 0 | CB31: 0 | CC31: 0 | CD31: 0 | CE31: 0 | CF31: 0 | CG31: 0
A32: 1 | B32: 4 | C32: EG | D32: 10 | F32: 7.1 Sanitärräume | G32: Z.FB0060 keramische Fliesen/Platten | H32: 1 | I32: 1 | J32: 1 | K32: 1 | L32: 1 | P32: 6.09 | AJ32: 1 3615 0004- 222EG 001000 7.1 | AK32: 3615 | AL32: 6.09 | AM32: 5xwö | AN32: 5 | AO32: 5 | BH32: 1 | BI32: 4 | BJ32: 6.09 | BK32: 6.09 | BL32: 6.09 | BM32: 6.09 | BN32: 6.09 | BO32: 6.09 | BP32: 0 | BQ32: 0 | BS32: 1 | BT32: 1 | BU32: 1 | BV32: 1 | BW32: 1 | BX32: 0 | BY32: 0 | CA32: 0 | CB32: 0 | CC32: 0 | CD32: 0 | CE32: 0 | CF32: 0 | CG32: 0
A33: 1 | B33: 4 | C33: EG | D33: 14 | F33: 2.0 Büroarbeit | G33: Z.FB0010 Anstrich/Lack | J33: 1 | S33: 31.96 | AJ33: 1 3615 0004- 222EG 001400 2.0 | AK33: 3615 | AL33: 31.96 | AM33: 1xwö | AN33: 1 | AO33: 1 | BH33: 1 | BI33: 4 | BJ33: 31.96 | BK33: 0 | BL33: 0 | BM33: 31.96 | BN33: 0 | BO33: 0 | BP33: 0 | BQ33: 0 | BS33: 0 | BT33: 0 | BU33: 1 | BV33: 0 | BW33: 0 | BX33: 0 | BY33: 0 | CA33: 0 | CB33: 0 | CC33: 0 | CD33: 0 | CE33: 0 | CF33: 0 | CG33: 0
A34: 1 | B34: 4 | C34: EG | D34: 15 | F34: 2.0 Büroarbeit | G34: Z.FB0010 Anstrich/Lack | J34: 1 | S34: 19.63 | AJ34: 1 3615 0004- 222EG 001500 2.0 | AK34: 3615 | AL34: 19.63 | AM34: 1xwö | AN34: 1 | AO34: 1 | BH34: 1 | BI34: 4 | BJ34: 19.63 | BK34: 0 | BL34: 0 | BM34: 19.63 | BN34: 0 | BO34: 0 | BP34: 0 | BQ34: 0 | BS34: 0 | BT34: 0 | BU34: 1 | BV34: 0 | BW34: 0 | BX34: 0 | BY34: 0 | CA34: 0 | CB34: 0 | CC34: 0 | CD34: 0 | CE34: 0 | CF34: 0 | CG34: 0
A35: 1 | B35: 4 | C35: EG | D35: 16 | F35: 7.2 Umkleiden | G35: Z.FB0010 Anstrich/Lack | H35: 1 | J35: 1 | R35: 13.75 | AJ35: 1 3615 0004- 222EG 001600 7.2 | AK35: 3615 | AL35: 13.75 | AM35: 2xwö | AN35: 2 | AO35: 2 | BH35: 1 | BI35: 4 | BJ35: 13.75 | BK35: 13.75 | BL35: 0 | BM35: 13.75 | BN35: 0 | BO35: 0 | BP35: 0 | BQ35: 0 | BS35: 1 | BT35: 0 | BU35: 1 | BV35: 0 | BW35: 0 | BX35: 0 | BY35: 0 | CA35: 0 | CB35: 0 | CC35: 0 | CD35: 0 | CE35: 0 | CF35: 0 | CG35: 0
A36: 1 | B36: 4 | C36: EG | D36: 17 | F36: 3.8 Küchen | G36: Z.FB0010 Anstrich/Lack | H36: 1 | J36: 1 | R36: 23.54 | AJ36: 1 3615 0004- 222EG 001700 3.8 | AK36: 3615 | AL36: 23.54 | AM36: 2xwö | AN36: 2 | AO36: 2 | BH36: 1 | BI36: 4 | BJ36: 23.54 | BK36: 23.54 | BL36: 0 | BM36: 23.54 | BN36: 0 | BO36: 0 | BP36: 0 | BQ36: 0 | BS36: 1 | BT36: 0 | BU36: 1 | BV36: 0 | BW36: 0 | BX36: 0 | BY36: 0 | CA36: 0 | CB36: 0 | CC36: 0 | CD36: 0 | CE36: 0 | CF36: 0 | CG36: 0
A37: 1 | B37: 4 | C37: EG | D37: 18 | F37: 2.0 Büroarbeit | G37: Z.FB0010 Anstrich/Lack | J37: 1 | S37: 48.61 | AJ37: 1 3615 0004- 222EG 001800 2.0 | AK37: 3615 | AL37: 48.61 | AM37: 1xwö | AN37: 1 | AO37: 1 | BH37: 1 | BI37: 4 | BJ37: 48.61 | BK37: 0 | BL37: 0 | BM37: 48.61 | BN37: 0 | BO37: 0 | BP37: 0 | BQ37: 0 | BS37: 0 | BT37: 0 | BU37: 1 | BV37: 0 | BW37: 0 | BX37: 0 | BY37: 0 | CA37: 0 | CB37: 0 | CC37: 0 | CD37: 0 | CE37: 0 | CF37: 0 | CG37: 0
A38: 1 | B38: 4 | C38: EG | D38: 19 | F38: 2.0 Büroarbeit | G38: Z.FB0010 Anstrich/Lack | J38: 1 | S38: 48.55 | AJ38: 1 3615 0004- 222EG 001900 2.0 | AK38: 3615 | AL38: 48.55 | AM38: 1xwö | AN38: 1 | AO38: 1 | BH38: 1 | BI38: 4 | BJ38: 48.55 | BK38: 0 | BL38: 0 | BM38: 48.55 | BN38: 0 | BO38: 0 | BP38: 0 | BQ38: 0 | BS38: 0 | BT38: 0 | BU38: 1 | BV38: 0 | BW38: 0 | BX38: 0 | BY38: 0 | CA38: 0 | CB38: 0 | CC38: 0 | CD38: 0 | CE38: 0 | CF38: 0 | CG38: 0
A39: 1 | B39: 4 | C39: EG | D39: 20 | F39: 2.0 Büroarbeit | G39: Z.FB0010 Anstrich/Lack | J39: 1 | S39: 23.54 | AJ39: 1 3615 0004- 222EG 002000 2.0 | AK39: 3615 | AL39: 23.54 | AM39: 1xwö | AN39: 1 | AO39: 1 | BH39: 1 | BI39: 4 | BJ39: 23.54 | BK39: 0 | BL39: 0 | BM39: 23.54 | BN39: 0 | BO39: 0 | BP39: 0 | BQ39: 0 | BS39: 0 | BT39: 0 | BU39: 1 | BV39: 0 | BW39: 0 | BX39: 0 | BY39: 0 | CA39: 0 | CB39: 0 | CC39: 0 | CD39: 0 | CE39: 0 | CF39: 0 | CG39: 0
A40: 1 | B40: 4 | C40: EG | D40: 21 | F40: 2.0 Büroarbeit | G40: Z.FB0010 Anstrich/Lack | J40: 1 | S40: 48.58 | AJ40: 1 3615 0004- 222EG 002100 2.0 | AK40: 3615 | AL40: 48.58 | AM40: 1xwö | AN40: 1 | AO40: 1 | BH40: 1 | BI40: 4 | BJ40: 48.58 | BK40: 0 | BL40: 0 | BM40: 48.58 | BN40: 0 | BO40: 0 | BP40: 0 | BQ40: 0 | BS40: 0 | BT40: 0 | BU40: 1 | BV40: 0 | BW40: 0 | BX40: 0 | BY40: 0 | CA40: 0 | CB40: 0 | CC40: 0 | CD40: 0 | CE40: 0 | CF40: 0 | CG40: 0
A41: 1 | B41: 4 | C41: EG | D41: 22 | F41: 9.0 Verkehrsfläche | G41: Z.FB0010 Anstrich/Lack | H41: 1 | J41: 1 | R41: 64.12 | AJ41: 1 3615 0004- 222EG 002200 9.0 | AK41: 3615 | AL41: 64.12 | AM41: 2xwö | AN41: 2 | AO41: 2 | BH41: 1 | BI41: 4 | BJ41: 64.12 | BK41: 64.12 | BL41: 0 | BM41: 64.12 | BN41: 0 | BO41: 0 | BP41: 0 | BQ41: 0 | BS41: 1 | BT41: 0 | BU41: 1 | BV41: 0 | BW41: 0 | BX41: 0 | BY41: 0 | CA41: 0 | CB41: 0 | CC41: 0 | CD41: 0 | CE41: 0 | CF41: 0 | CG41: 0
A42: 1 | B42: 4 | C42: EG | D42: 23 | F42: 9.0 Verkehrsfläche | G42: Z.FB0010 Anstrich/Lack | H42: 1 | J42: 1 | R42: 64.84 | AJ42: 1 3615 0004- 222EG 002300 9.0 | AK42: 3615 | AL42: 64.84 | AM42: 2xwö | AN42: 2 | AO42: 2 | BH42: 1 | BI42: 4 | BJ42: 64.84 | BK42: 64.84 | BL42: 0 | BM42: 64.84 | BN42: 0 | BO42: 0 | BP42: 0 | BQ42: 0 | BS42: 1 | BT42: 0 | BU42: 1 | BV42: 0 | BW42: 0 | BX42: 0 | BY42: 0 | CA42: 0 | CB42: 0 | CC42: 0 | CD42: 0 | CE42: 0 | CF42: 0 | CG42: 0
A43: 1 | B43: 4 | C43: EG | D43: 24 | F43: 9.0 Verkehrsfläche | G43: Z.FB0010 Anstrich/Lack | H43: 1 | J43: 1 | R43: 7.58 | AJ43: 1 3615 0004- 222EG 002400 9.0 | AK43: 3615 | AL43: 7.58 | AM43: 2xwö | AN43: 2 | AO43: 2 | BH43: 1 | BI43: 4 | BJ43: 7.58 | BK43: 7.58 | BL43: 0 | BM43: 7.58 | BN43: 0 | BO43: 0 | BP43: 0 | BQ43: 0 | BS43: 1 | BT43: 0 | BU43: 1 | BV43: 0 | BW43: 0 | BX43: 0 | BY43: 0 | CA43: 0 | CB43: 0 | CC43: 0 | CD43: 0 | CE43: 0 | CF43: 0 | CG43: 0
A44: 1 | B44: 5 | C44: EG | D44: 6 | F44: 3.8 Küchen | G44: Z.FB0030 Beton | J44: 1 | S44: 8.9 | AJ44: 1 3615 0005- 222EG 000600 3.8 | AK44: 3615 | AL44: 8.9 | AM44: 1xwö | AN44: 1 | AO44: 1 | BH44: 1 | BI44: 5 | BJ44: 8.9 | BK44: 0 | BL44: 0 | BM44: 8.9 | BN44: 0 | BO44: 0 | BP44: 0 | BQ44: 0 | BS44: 0 | BT44: 0 | BU44: 1 | BV44: 0 | BW44: 0 | BX44: 0 | BY44: 0 | CA44: 0 | CB44: 0 | CC44: 0 | CD44: 0 | CE44: 0 | CF44: 0 | CG44: 0
A45: 1 | B45: 5 | C45: EG | D45: 7 | F45: 7.1 Sanitärräume | G45: Z.FB0060 keramische Fliesen/Platten | H45: 1 | I45: 1 | J45: 1 | K45: 1 | L45: 1 | P45: 3.7 | AJ45: 1 3615 0005- 222EG 000700 7.1 | AK45: 3615 | AL45: 3.7 | AM45: 5xwö | AN45: 5 | AO45: 5 | BH45: 1 | BI45: 5 | BJ45: 3.7 | BK45: 3.7 | BL45: 3.7 | BM45: 3.7 | BN45: 3.7 | BO45: 3.7 | BP45: 0 | BQ45: 0 | BS45: 1 | BT45: 1 | BU45: 1 | BV45: 1 | BW45: 1 | BX45: 0 | BY45: 0 | CA45: 0 | CB45: 0 | CC45: 0 | CD45: 0 | CE45: 0 | CF45: 0 | CG45: 0
A46: 1 | B46: 5 | C46: EG | D46: 8 | F46: 9.0 Verkehrsfläche | G46: Z.FB0030 Beton | J46: 1 | S46: 7.1 | AJ46: 1 3615 0005- 222EG 000800 9.0 | AK46: 3615 | AL46: 7.1 | AM46: 1xwö | AN46: 1 | AO46: 1 | BH46: 1 | BI46: 5 | BJ46: 7.1 | BK46: 0 | BL46: 0 | BM46: 7.1 | BN46: 0 | BO46: 0 | BP46: 0 | BQ46: 0 | BS46: 0 | BT46: 0 | BU46: 1 | BV46: 0 | BW46: 0 | BX46: 0 | BY46: 0 | CA46: 0 | CB46: 0 | CC46: 0 | CD46: 0 | CE46: 0 | CF46: 0 | CG46: 0
A47: 1 | B47: 5 | C47: EG | D47: 9 | F47: 1.0 Wohnen und Aufenthalt | G47: Z.FB0010 Anstrich/Lack | H47: 1 | J47: 1 | O47: =IF($AN47=0,IF(AND($S47<> 0, LEFT($S$13, 3)="nur"), "Sonderreinigungfläche","Reinigungstag fehlt"),"") ->  | R47: 19.4 | AJ47: 1 3615 0005- 222EG 000900 1.0 | AK47: 3615 | AL47: 19.4 | AM47: 2xwö | AN47: 2 | AO47: =SUM(H47:N47) -> 2 | BH47: =A47 -> 1 | BI47: =B47 -> 5 | BJ47: =SUM($P47:$S47) -> 19.4 | BK47: =$BJ47*H47 -> 19.4 | BL47: =$BJ47*I47 -> 0 | BM47: =$BJ47*J47 -> 19.4 | BN47: =$BJ47*K47 -> 0 | BO47: =$BJ47*L47 -> 0 | BP47: =$BJ47*M47 -> 0 | BQ47: =$BJ47*N47 -> 0 | BS47: =H47 -> 1 | BT47: =I47 -> 0 | BU47: =J47 -> 1 | BV47: =K47 -> 0 | BW47: =L47 -> 0 | BX47: =M47 -> 0 | BY47: =N47 -> 0 | CA47: =IF($BR47=0,0,ROUNDUP(BK47/$BR47,3)) -> 0 | CB47: =IF($BR47=0,0,ROUNDUP(BL47/$BR47,3)) -> 0 | CC47: =IF($BR47=0,0,ROUNDUP(BM47/$BR47,3)) -> 0 | CD47: =IF($BR47=0,0,ROUNDUP(BN47/$BR47,3)) -> 0 | CE47: =IF($BR47=0,0,ROUNDUP(BO47/$BR47,3)) -> 0 | CF47: =IF($BR47=0,0,ROUNDUP(BP47/$BR47,3)) -> 0 | CG47: =IF($BR47=0,0,ROUNDUP(BQ47/$BR47,3)) -> 0
A48: 1 | B48: 7 | C48: EG | D48: 0.01 | F48: 2.0 Büroarbeit | G48: Z.FB0020 Estrich | J48: 1 | S48: 11.4 | AJ48: 1 3615 0007- 222EG 0000011 2.0 | AK48: 3615 | AL48: 11.4 | AM48: 1xwö | AN48: 1 | AO48: 1 | BH48: 1 | BI48: 7 | BJ48: 11.4 | BK48: 0 | BL48: 0 | BM48: 11.4 | BN48: 0 | BO48: 0 | BP48: 0 | BQ48: 0 | BS48: 0 | BT48: 0 | BU48: 1 | BV48: 0 | BW48: 0 | BX48: 0 | BY48: 0 | CA48: 0 | CB48: 0 | CC48: 0 | CD48: 0 | CE48: 0 | CF48: 0 | CG48: 0
A49: 1 | B49: 7 | C49: EG | D49: 0.03 | F49: 7.1 Sanitärräume | G49: Z.FB0060 keramische Fliesen/Platten | H49: 1 | J49: 1 | L49: 1 | Q49: 4.42 | AJ49: 1 3615 0007- 222EG 0000033 7.1 | AK49: 3615 | AL49: 4.42 | AM49: 3xwö | AN49: 3 | AO49: 3 | BH49: 1 | BI49: 7 | BJ49: 4.42 | BK49: 4.42 | BL49: 0 | BM49: 4.42 | BN49: 0 | BO49: 4.42 | BP49: 0 | BQ49: 0 | BS49: 1 | BT49: 0 | BU49: 1 | BV49: 0 | BW49: 1 | BX49: 0 | BY49: 0 | CA49: 0 | CB49: 0 | CC49: 0 | CD49: 0 | CE49: 0 | CF49: 0 | CG49: 0
A50: 1 | B50: 7 | C50: EG | D50: 0.04 | F50: 7.1 Sanitärräume | G50: Z.FB0060 keramische Fliesen/Platten | H50: 1 | J50: 1 | L50: 1 | Q50: 2.66 | AJ50: 1 3615 0007- 222EG 0000044 7.1 | AK50: 3615 | AL50: 2.66 | AM50: 3xwö | AN50: 3 | AO50: 3 | BH50: 1 | BI50: 7 | BJ50: 2.66 | BK50: 2.66 | BL50: 0 | BM50: 2.66 | BN50: 0 | BO50: 2.66 | BP50: 0 | BQ50: 0 | BS50: 1 | BT50: 0 | BU50: 1 | BV50: 0 | BW50: 1 | BX50: 0 | BY50: 0 | CA50: 0 | CB50: 0 | CC50: 0 | CD50: 0 | CE50: 0 | CF50: 0 | CG50: 0
A51: 1 | B51: 7 | C51: EG | D51: 0.05 | F51: 9.0 Verkehrsfläche | G51: Z.FB0020 Estrich | J51: 1 | S51: 3.54 | AJ51: 1 3615 0007- 222EG 0000055 9.0 | AK51: 3615 | AL51: 3.54 | AM51: 1xwö | AN51: 1 | AO51: 1 | BH51: 1 | BI51: 7 | BJ51: 3.54 | BK51: 0 | BL51: 0 | BM51: 3.54 | BN51: 0 | BO51: 0 | BP51: 0 | BQ51: 0 | BS51: 0 | BT51: 0 | BU51: 1 | BV51: 0 | BW51: 0 | BX51: 0 | BY51: 0 | CA51: 0 | CB51: 0 | CC51: 0 | CD51: 0 | CE51: 0 | CF51: 0 | CG51: 0
A52: 1 | B52: 10 | C52: EG | D52: 1 | F52: 2.0 Büroarbeit | G52: Z.FB0010 Anstrich/Lack | J52: 1 | S52: 12.32 | AJ52: 1 3615 0010- 222EG 000100 2.0 | AK52: 3615 | AL52: 12.32 | AM52: 1xwö | AN52: 1 | AO52: 1 | BH52: 1 | BI52: 10 | BJ52: 12.32 | BK52: 0 | BL52: 0 | BM52: 12.32 | BN52: 0 | BO52: 0 | BP52: 0 | BQ52: 0 | BS52: 0 | BT52: 0 | BU52: 1 | BV52: 0 | BW52: 0 | BX52: 0 | BY52: 0 | CA52: 0 | CB52: 0 | CC52: 0 | CD52: 0 | CE52: 0 | CF52: 0 | CG52: 0
A53: 1 | B53: 11 | C53: EG | D53: 2 | F53: 2.0 Büroarbeit | G53: Z.FB0010 Anstrich/Lack | H53: 1 | J53: 1 | R53: 13.3 | AJ53: 1 3615 0011- 222EG 000200 2.0 | AK53: 3615 | AL53: 13.3 | AM53: 2xwö | AN53: 2 | AO53: 2 | BH53: 1 | BI53: 11 | BJ53: 13.3 | BK53: 13.3 | BL53: 0 | BM53: 13.3 | BN53: 0 | BO53: 0 | BP53: 0 | BQ53: 0 | BS53: 1 | BT53: 0 | BU53: 1 | BV53: 0 | BW53: 0 | BX53: 0 | BY53: 0 | CA53: 0 | CB53: 0 | CC53: 0 | CD53: 0 | CE53: 0 | CF53: 0 | CG53: 0
A54: 1 | B54: 11 | C54: EG | D54: 3 | F54: 7.1 Sanitärräume | G54: Z.FB0010 Anstrich/Lack | H54: 1 | J54: 1 | L54: 1 | Q54: 1.5 | AJ54: 1 3615 0011- 222EG 000300 7.1 | AK54: 3615 | AL54: 1.5 | AM54: 3xwö | AN54: 3 | AO54: 3 | BH54: 1 | BI54: 11 | BJ54: 1.5 | BK54: 1.5 | BL54: 0 | BM54: 1.5 | BN54: 0 | BO54: 1.5 | BP54: 0 | BQ54: 0 | BS54: 1 | BT54: 0 | BU54: 1 | BV54: 0 | BW54: 1 | BX54: 0 | BY54: 0 | CA54: 0 | CB54: 0 | CC54: 0 | CD54: 0 | CE54: 0 | CF54: 0 | CG54: 0
A55: 1 | B55: 11 | C55: EG | D55: 4 | F55: 2.0 Büroarbeit | G55: Z.FB0010 Anstrich/Lack | J55: 1 | S55: 49 | AJ55: 1 3615 0011- 222EG 000400 2.0 | AK55: 3615 | AL55: 49 | AM55: 1xwö | AN55: 1 | AO55: 1 | BH55: 1 | BI55: 11 | BJ55: 49 | BK55: 0 | BL55: 0 | BM55: 49 | BN55: 0 | BO55: 0 | BP55: 0 | BQ55: 0 | BS55: 0 | BT55: 0 | BU55: 1 | BV55: 0 | BW55: 0 | BX55: 0 | BY55: 0 | CA55: 0 | CB55: 0 | CC55: 0 | CD55: 0 | CE55: 0 | CF55: 0 | CG55: 0
A56: 1 | B56: 27 | C56: EG | D56: 1 | F56: 2.0 Büroarbeit | G56: Z.FB0020 Estrich | J56: 1 | S56: 7.84 | AJ56: 1 3615 0027- 222EG 000100 2.0 | AK56: 3615 | AL56: 7.84 | AM56: 1xwö | AN56: 1 | AO56: 1 | BH56: 1 | BI56: 27 | BJ56: 7.84 | BK56: 0 | BL56: 0 | BM56: 7.84 | BN56: 0 | BO56: 0 | BP56: 0 | BQ56: 0 | BS56: 0 | BT56: 0 | BU56: 1 | BV56: 0 | BW56: 0 | BX56: 0 | BY56: 0 | CA56: 0 | CB56: 0 | CC56: 0 | CD56: 0 | CE56: 0 | CF56: 0 | CG56: 0
A57: 1 | B57: 28 | C57: EG | D57: 0.07 | F57: 9.0 Verkehrsfläche | G57: Z.FB0220 Hartbelag | J57: 1 | S57: 41.71 | AJ57: 1 3615 0028- 222EG 0000077 9.0 | AK57: 3615 | AL57: 41.71 | AM57: 1xwö | AN57: 1 | AO57: 1 | BH57: 1 | BI57: 28 | BJ57: 41.71 | BK57: 0 | BL57: 0 | BM57: 41.71 | BN57: 0 | BO57: 0 | BP57: 0 | BQ57: 0 | BS57: 0 | BT57: 0 | BU57: 1 | BV57: 0 | BW57: 0 | BX57: 0 | BY57: 0 | CA57: 0 | CB57: 0 | CC57: 0 | CD57: 0 | CE57: 0 | CF57: 0 | CG57: 0
A58: 1 | B58: 28 | C58: EG | D58: 0.08 | F58: 9.0 Verkehrsfläche | G58: Z.FB0220 Hartbelag | J58: 1 | S58: 57.25 | AJ58: 1 3615 0028- 222EG 0000088 9.0 | AK58: 3615 | AL58: 57.25 | AM58: 1xwö | AN58: 1 | AO58: 1 | BH58: 1 | BI58: 28 | BJ58: 57.25 | BK58: 0 | BL58: 0 | BM58: 57.25 | BN58: 0 | BO58: 0 | BP58: 0 | BQ58: 0 | BS58: 0 | BT58: 0 | BU58: 1 | BV58: 0 | BW58: 0 | BX58: 0 | BY58: 0 | CA58: 0 | CB58: 0 | CC58: 0 | CD58: 0 | CE58: 0 | CF58: 0 | CG58: 0
A59: 1 | B59: 28 | C59: EG | D59: 0.09 | F59: 5.0 Bildung, Unterricht und Kultur | G59: Z.FB0220 Hartbelag | H59: 1 | J59: 1 | R59: 27.31 | AJ59: 1 3615 0028- 222EG 0000099 5.0 | AK59: 3615 | AL59: 27.31 | AM59: 2xwö | AN59: 2 | AO59: 2 | BH59: 1 | BI59: 28 | BJ59: 27.31 | BK59: 27.31 | BL59: 0 | BM59: 27.31 | BN59: 0 | BO59: 0 | BP59: 0 | BQ59: 0 | BS59: 1 | BT59: 0 | BU59: 1 | BV59: 0 | BW59: 0 | BX59: 0 | BY59: 0 | CA59: 0 | CB59: 0 | CC59: 0 | CD59: 0 | CE59: 0 | CF59: 0 | CG59: 0
A60: 1 | B60: 28 | C60: EG | D60: 0.10 | F60: 5.0 Bildung, Unterricht und Kultur | G60: Z.FB0220 Hartbelag | J60: 1 | S60: 12.89 | AJ60: 1 3615 0028- 222EG 000010105.0 | AK60: 3615 | AL60: 12.89 | AM60: 1xwö | AN60: 1 | AO60: 1 | BH60: 1 | BI60: 28 | BJ60: 12.89 | BK60: 0 | BL60: 0 | BM60: 12.89 | BN60: 0 | BO60: 0 | BP60: 0 | BQ60: 0 | BS60: 0 | BT60: 0 | BU60: 1 | BV60: 0 | BW60: 0 | BX60: 0 | BY60: 0 | CA60: 0 | CB60: 0 | CC60: 0 | CD60: 0 | CE60: 0 | CF60: 0 | CG60: 0
A61: 1 | B61: 28 | C61: EG | D61: 0.11 | F61: 5.0 Bildung, Unterricht und Kultur | G61: Z.FB0220 Hartbelag | H61: 1 | J61: 1 | R61: 27.32 | AJ61: 1 3615 0028- 222EG 000011115.0 | AK61: 3615 | AL61: 27.32 | AM61: 2xwö | AN61: 2 | AO61: 2 | BH61: 1 | BI61: 28 | BJ61: 27.32 | BK61: 27.32 | BL61: 0 | BM61: 27.32 | BN61: 0 | BO61: 0 | BP61: 0 | BQ61: 0 | BS61: 1 | BT61: 0 | BU61: 1 | BV61: 0 | BW61: 0 | BX61: 0 | BY61: 0 | CA61: 0 | CB61: 0 | CC61: 0 | CD61: 0 | CE61: 0 | CF61: 0 | CG61: 0
A62: 1 | B62: 28 | C62: EG | D62: 0.12 | F62: 5.0 Bildung, Unterricht und Kultur | G62: Z.FB0220 Hartbelag | J62: 1 | S62: 12.89 | AJ62: 1 3615 0028- 222EG 000012125.0 | AK62: 3615 | AL62: 12.89 | AM62: 1xwö | AN62: 1 | AO62: 1 | BH62: 1 | BI62: 28 | BJ62: 12.89 | BK62: 0 | BL62: 0 | BM62: 12.89 | BN62: 0 | BO62: 0 | BP62: 0 | BQ62: 0 | BS62: 0 | BT62: 0 | BU62: 1 | BV62: 0 | BW62: 0 | BX62: 0 | BY62: 0 | CA62: 0 | CB62: 0 | CC62: 0 | CD62: 0 | CE62: 0 | CF62: 0 | CG62: 0
A63: 1 | B63: 28 | C63: EG | D63: 0.13 | F63: 5.0 Bildung, Unterricht und Kultur | G63: Z.FB0220 Hartbelag | H63: 1 | J63: 1 | R63: 27.31 | AJ63: 1 3615 0028- 222EG 000013135.0 | AK63: 3615 | AL63: 27.31 | AM63: 2xwö | AN63: 2 | AO63: 2 | BH63: 1 | BI63: 28 | BJ63: 27.31 | BK63: 27.31 | BL63: 0 | BM63: 27.31 | BN63: 0 | BO63: 0 | BP63: 0 | BQ63: 0 | BS63: 1 | BT63: 0 | BU63: 1 | BV63: 0 | BW63: 0 | BX63: 0 | BY63: 0 | CA63: 0 | CB63: 0 | CC63: 0 | CD63: 0 | CE63: 0 | CF63: 0 | CG63: 0
A64: 1 | B64: 28 | C64: EG | D64: 0.14 | F64: 5.0 Bildung, Unterricht und Kultur | G64: Z.FB0220 Hartbelag | J64: 1 | S64: 12.89 | AJ64: 1 3615 0028- 222EG 000014145.0 | AK64: 3615 | AL64: 12.89 | AM64: 1xwö | AN64: 1 | AO64: 1 | BH64: 1 | BI64: 28 | BJ64: 12.89 | BK64: 0 | BL64: 0 | BM64: 12.89 | BN64: 0 | BO64: 0 | BP64: 0 | BQ64: 0 | BS64: 0 | BT64: 0 | BU64: 1 | BV64: 0 | BW64: 0 | BX64: 0 | BY64: 0 | CA64: 0 | CB64: 0 | CC64: 0 | CD64: 0 | CE64: 0 | CF64: 0 | CG64: 0
A65: 1 | B65: 28 | C65: EG | D65: 0.15 | F65: 5.0 Bildung, Unterricht und Kultur | G65: Z.FB0220 Hartbelag | H65: 1 | J65: 1 | R65: 27.31 | AJ65: 1 3615 0028- 222EG 000015155.0 | AK65: 3615 | AL65: 27.31 | AM65: 2xwö | AN65: 2 | AO65: 2 | BH65: 1 | BI65: 28 | BJ65: 27.31 | BK65: 27.31 | BL65: 0 | BM65: 27.31 | BN65: 0 | BO65: 0 | BP65: 0 | BQ65: 0 | BS65: 1 | BT65: 0 | BU65: 1 | BV65: 0 | BW65: 0 | BX65: 0 | BY65: 0 | CA65: 0 | CB65: 0 | CC65: 0 | CD65: 0 | CE65: 0 | CF65: 0 | CG65: 0
A66: 1 | B66: 28 | C66: EG | D66: 0.16 | F66: 5.0 Bildung, Unterricht und Kultur | G66: Z.FB0220 Hartbelag | J66: 1 | S66: 12.89 | AJ66: 1 3615 0028- 222EG 000016165.0 | AK66: 3615 | AL66: 12.89 | AM66: 1xwö | AN66: 1 | AO66: 1 | BH66: 1 | BI66: 28 | BJ66: 12.89 | BK66: 0 | BL66: 0 | BM66: 12.89 | BN66: 0 | BO66: 0 | BP66: 0 | BQ66: 0 | BS66: 0 | BT66: 0 | BU66: 1 | BV66: 0 | BW66: 0 | BX66: 0 | BY66: 0 | CA66: 0 | CB66: 0 | CC66: 0 | CD66: 0 | CE66: 0 | CF66: 0 | CG66: 0
A67: 1 | B67: 28 | C67: EG | D67: 0.17 | F67: 5.0 Bildung, Unterricht und Kultur | G67: Z.FB0220 Hartbelag | H67: 1 | J67: 1 | R67: 27.31 | AJ67: 1 3615 0028- 222EG 000017175.0 | AK67: 3615 | AL67: 27.31 | AM67: 2xwö | AN67: 2 | AO67: 2 | BH67: 1 | BI67: 28 | BJ67: 27.31 | BK67: 27.31 | BL67: 0 | BM67: 27.31 | BN67: 0 | BO67: 0 | BP67: 0 | BQ67: 0 | BS67: 1 | BT67: 0 | BU67: 1 | BV67: 0 | BW67: 0 | BX67: 0 | BY67: 0 | CA67: 0 | CB67: 0 | CC67: 0 | CD67: 0 | CE67: 0 | CF67: 0 | CG67: 0
A68: 1 | B68: 28 | C68: EG | D68: 0.18 | F68: 5.0 Bildung, Unterricht und Kultur | G68: Z.FB0220 Hartbelag | J68: 1 | S68: 12.89 | AJ68: 1 3615 0028- 222EG 000018185.0 | AK68: 3615 | AL68: 12.89 | AM68: 1xwö | AN68: 1 | AO68: 1 | BH68: 1 | BI68: 28 | BJ68: 12.89 | BK68: 0 | BL68: 0 | BM68: 12.89 | BN68: 0 | BO68: 0 | BP68: 0 | BQ68: 0 | BS68: 0 | BT68: 0 | BU68: 1 | BV68: 0 | BW68: 0 | BX68: 0 | BY68: 0 | CA68: 0 | CB68: 0 | CC68: 0 | CD68: 0 | CE68: 0 | CF68: 0 | CG68: 0
A69: 1 | B69: 28 | C69: EG | D69: 0.19 | F69: 5.0 Bildung, Unterricht und Kultur | G69: Z.FB0220 Hartbelag | H69: 1 | J69: 1 | R69: 27.31 | AJ69: 1 3615 0028- 222EG 000019195.0 | AK69: 3615 | AL69: 27.31 | AM69: 2xwö | AN69: 2 | AO69: 2 | BH69: 1 | BI69: 28 | BJ69: 27.31 | BK69: 27.31 | BL69: 0 | BM69: 27.31 | BN69: 0 | BO69: 0 | BP69: 0 | BQ69: 0 | BS69: 1 | BT69: 0 | BU69: 1 | BV69: 0 | BW69: 0 | BX69: 0 | BY69: 0 | CA69: 0 | CB69: 0 | CC69: 0 | CD69: 0 | CE69: 0 | CF69: 0 | CG69: 0
A70: 1 | B70: 28 | C70: EG | D70: 0.20 | F70: 5.0 Bildung, Unterricht und Kultur | G70: Z.FB0220 Hartbelag | J70: 1 | S70: 12.89 | AJ70: 1 3615 0028- 222EG 000020205.0 | AK70: 3615 | AL70: 12.89 | AM70: 1xwö | AN70: 1 | AO70: 1 | BH70: 1 | BI70: 28 | BJ70: 12.89 | BK70: 0 | BL70: 0 | BM70: 12.89 | BN70: 0 | BO70: 0 | BP70: 0 | BQ70: 0 | BS70: 0 | BT70: 0 | BU70: 1 | BV70: 0 | BW70: 0 | BX70: 0 | BY70: 0 | CA70: 0 | CB70: 0 | CC70: 0 | CD70: 0 | CE70: 0 | CF70: 0 | CG70: 0
A71: 1 | B71: 28 | C71: EG | D71: 0.23 | F71: 7.1 Sanitärräume | G71: Z.FB0060 keramische Fliesen/Platten | H71: 1 | I71: 1 | J71: 1 | K71: 1 | L71: 1 | P71: 7.7 | AJ71: 1 3615 0028- 222EG 000023237.1 | AK71: 3615 | AL71: 7.7 | AM71: 5xwö | AN71: 5 | AO71: 5 | BH71: 1 | BI71: 28 | BJ71: 7.7 | BK71: 7.7 | BL71: 7.7 | BM71: 7.7 | BN71: 7.7 | BO71: 7.7 | BP71: 0 | BQ71: 0 | BS71: 1 | BT71: 1 | BU71: 1 | BV71: 1 | BW71: 1 | BX71: 0 | BY71: 0 | CA71: 0 | CB71: 0 | CC71: 0 | CD71: 0 | CE71: 0 | CF71: 0 | CG71: 0
A72: 1 | B72: 28 | C72: EG | D72: 0.25 | F72: 7.9 Sonstige Nutzung | G72: Z.FB0060 keramische Fliesen/Platten | J72: 1 | S72: 8.53 | AJ72: 1 3615 0028- 222EG 000025257.9 | AK72: 3615 | AL72: 8.53 | AM72: 1xwö | AN72: 1 | AO72: 1 | BH72: 1 | BI72: 28 | BJ72: 8.53 | BK72: 0 | BL72: 0 | BM72: 8.53 | BN72: 0 | BO72: 0 | BP72: 0 | BQ72: 0 | BS72: 0 | BT72: 0 | BU72: 1 | BV72: 0 | BW72: 0 | BX72: 0 | BY72: 0 | CA72: 0 | CB72: 0 | CC72: 0 | CD72: 0 | CE72: 0 | CF72: 0 | CG72: 0
A73: 1 | B73: 28 | C73: EG | D73: 0.26 | F73: 7.1 Sanitärräume | G73: Z.FB0060 keramische Fliesen/Platten | H73: 1 | I73: 1 | J73: 1 | K73: 1 | L73: 1 | P73: 3.76 | AJ73: 1 3615 0028- 222EG 000026267.1 | AK73: 3615 | AL73: 3.76 | AM73: 5xwö | AN73: 5 | AO73: 5 | BH73: 1 | BI73: 28 | BJ73: 3.76 | BK73: 3.76 | BL73: 3.76 | BM73: 3.76 | BN73: 3.76 | BO73: 3.76 | BP73: 0 | BQ73: 0 | BS73: 1 | BT73: 1 | BU73: 1 | BV73: 1 | BW73: 1 | BX73: 0 | BY73: 0 | CA73: 0 | CB73: 0 | CC73: 0 | CD73: 0 | CE73: 0 | CF73: 0 | CG73: 0
A74: 1 | B74: 28 | C74: EG | D74: 0.27 | F74: 7.1 Sanitärräume | G74: Z.FB0060 keramische Fliesen/Platten | H74: 1 | I74: 1 | J74: 1 | K74: 1 | L74: 1 | P74: 15.1 | AJ74: 1 3615 0028- 222EG 000027277.1 | AK74: 3615 | AL74: 15.1 | AM74: 5xwö | AN74: 5 | AO74: 5 | BH74: 1 | BI74: 28 | BJ74: 15.1 | BK74: 15.1 | BL74: 15.1 | BM74: 15.1 | BN74: 15.1 | BO74: 15.1 | BP74: 0 | BQ74: 0 | BS74: 1 | BT74: 1 | BU74: 1 | BV74: 1 | BW74: 1 | BX74: 0 | BY74: 0 | CA74: 0 | CB74: 0 | CC74: 0 | CD74: 0 | CE74: 0 | CF74: 0 | CG74: 0
A75: 1 | B75: 28 | C75: EG | D75: 0.28 | F75: 7.1 Sanitärräume | G75: Z.FB0060 keramische Fliesen/Platten | H75: 1 | I75: 1 | J75: 1 | K75: 1 | L75: 1 | P75: 4.87 | AJ75: 1 3615 0028- 222EG 000028287.1 | AK75: 3615 | AL75: 4.87 | AM75: 5xwö | AN75: 5 | AO75: 5 | BH75: 1 | BI75: 28 | BJ75: 4.87 | BK75: 4.87 | BL75: 4.87 | BM75: 4.87 | BN75: 4.87 | BO75: 4.87 | BP75: 0 | BQ75: 0 | BS75: 1 | BT75: 1 | BU75: 1 | BV75: 1 | BW75: 1 | BX75: 0 | BY75: 0 | CA75: 0 | CB75: 0 | CC75: 0 | CD75: 0 | CE75: 0 | CF75: 0 | CG75: 0
A76: 1 | B76: 30 | C76: EG | D76: 1 | F76: 2.0 Büroarbeit | G76: Z.FB0020 Estrich | J76: 1 | S76: 15 | AJ76: 1 3615 0030- 222EG 000100 2.0 | AK76: 3615 | AL76: 15 | AM76: 1xwö | AN76: 1 | AO76: 1 | BH76: 1 | BI76: 30 | BJ76: 15 | BK76: 0 | BL76: 0 | BM76: 15 | BN76: 0 | BO76: 0 | BP76: 0 | BQ76: 0 | BS76: 0 | BT76: 0 | BU76: 1 | BV76: 0 | BW76: 0 | BX76: 0 | BY76: 0 | CA76: 0 | CB76: 0 | CC76: 0 | CD76: 0 | CE76: 0 | CF76: 0 | CG76: 0
A77: 1 | B77: 31 | C77: EG | D77: 2 | F77: 2.0 Büroarbeit | G77: Z.FB0020 Estrich | J77: 1 | S77: 15 | AJ77: 1 3615 0031- 222EG 000200 2.0 | AK77: 3615 | AL77: 15 | AM77: 1xwö | AN77: 1 | AO77: 1 | BH77: 1 | BI77: 31 | BJ77: 15 | BK77: 0 | BL77: 0 | BM77: 15 | BN77: 0 | BO77: 0 | BP77: 0 | BQ77: 0 | BS77: 0 | BT77: 0 | BU77: 1 | BV77: 0 | BW77: 0 | BX77: 0 | BY77: 0 | CA77: 0 | CB77: 0 | CC77: 0 | CD77: 0 | CE77: 0 | CF77: 0 | CG77: 0
A78: 1 | B78: 34 | C78: EG | D78: 2 | F78: 7.1 Sanitärräume | G78: Z.FB0220 Hartbelag | H78: 1 | I78: 1 | J78: 1 | K78: 1 | L78: 1 | P78: 8.32 | AJ78: 1 3615 0034- 222EG 000200 7.1 | AK78: 3615 | AL78: 8.32 | AM78: 5xwö | AN78: 5 | AO78: 5 | BH78: 1 | BI78: 34 | BJ78: 8.32 | BK78: 8.32 | BL78: 8.32 | BM78: 8.32 | BN78: 8.32 | BO78: 8.32 | BP78: 0 | BQ78: 0 | BS78: 1 | BT78: 1 | BU78: 1 | BV78: 1 | BW78: 1 | BX78: 0 | BY78: 0 | CA78: 0 | CB78: 0 | CC78: 0 | CD78: 0 | CE78: 0 | CF78: 0 | CG78: 0
A79: 1 | B79: 34 | C79: EG | D79: 3 | F79: 7.1 Sanitärräume | G79: Z.FB0220 Hartbelag | H79: 1 | I79: 1 | J79: 1 | K79: 1 | L79: 1 | P79: 10.74 | AJ79: 1 3615 0034- 222EG 000300 7.1 | AK79: 3615 | AL79: 10.74 | AM79: 5xwö | AN79: 5 | AO79: 5 | BH79: 1 | BI79: 34 | BJ79: 10.74 | BK79: 10.74 | BL79: 10.74 | BM79: 10.74 | BN79: 10.74 | BO79: 10.74 | BP79: 0 | BQ79: 0 | BS79: 1 | BT79: 1 | BU79: 1 | BV79: 1 | BW79: 1 | BX79: 0 | BY79: 0 | CA79: 0 | CB79: 0 | CC79: 0 | CD79: 0 | CE79: 0 | CF79: 0 | CG79: 0
A80: 1 | B80: 34 | C80: EG | D80: 4 | F80: 7.1 Sanitärräume | G80: Z.FB0220 Hartbelag | H80: 1 | I80: 1 | J80: 1 | K80: 1 | L80: 1 | P80: 16.75 | AJ80: 1 3615 0034- 222EG 000400 7.1 | AK80: 3615 | AL80: 16.75 | AM80: 5xwö | AN80: 5 | AO80: 5 | BH80: 1 | BI80: 34 | BJ80: 16.75 | BK80: 16.75 | BL80: 16.75 | BM80: 16.75 | BN80: 16.75 | BO80: 16.75 | BP80: 0 | BQ80: 0 | BS80: 1 | BT80: 1 | BU80: 1 | BV80: 1 | BW80: 1 | BX80: 0 | BY80: 0 | CA80: 0 | CB80: 0 | CC80: 0 | CD80: 0 | CE80: 0 | CF80: 0 | CG80: 0
A81: 1 | B81: 34 | C81: EG | D81: 5 | F81: 7.1 Sanitärräume | G81: Z.FB0220 Hartbelag | H81: 1 | I81: 1 | J81: 1 | K81: 1 | L81: 1 | P81: 7.28 | AJ81: 1 3615 0034- 222EG 000500 7.1 | AK81: 3615 | AL81: 7.28 | AM81: 5xwö | AN81: 5 | AO81: 5 | BH81: 1 | BI81: 34 | BJ81: 7.28 | BK81: 7.28 | BL81: 7.28 | BM81: 7.28 | BN81: 7.28 | BO81: 7.28 | BP81: 0 | BQ81: 0 | BS81: 1 | BT81: 1 | BU81: 1 | BV81: 1 | BW81: 1 | BX81: 0 | BY81: 0 | CA81: 0 | CB81: 0 | CC81: 0 | CD81: 0 | CE81: 0 | CF81: 0 | CG81: 0
A82: 1 | B82: 35 | C82: EG | D82: 1 | F82: 7.1 Sanitärräume | G82: Z.FB0220 Hartbelag | H82: 1 | I82: 1 | J82: 1 | K82: 1 | L82: 1 | P82: 15 | AJ82: 1 3615 0035- 222EG 000100 7.1 | AK82: 3615 | AL82: 15 | AM82: 5xwö | AN82: 5 | AO82: 5 | BH82: 1 | BI82: 35 | BJ82: 15 | BK82: 15 | BL82: 15 | BM82: 15 | BN82: 15 | BO82: 15 | BP82: 0 | BQ82: 0 | BS82: 1 | BT82: 1 | BU82: 1 | BV82: 1 | BW82: 1 | BX82: 0 | BY82: 0 | CA82: 0 | CB82: 0 | CC82: 0 | CD82: 0 | CE82: 0 | CF82: 0 | CG82: 0
AJ83: 0000 ZZZZZ 000000

Sheet Fensterverzeichnis
A1: Fensterverzeichnis | AZ1: AbrBer | BA1: zu reinigende FFl-Summe | BB1: Fl-Summe
A2: BwDLZ | E2: =IF(Raumverzeichnis!E2="","",Raumverzeichnis!E2) -> Ingolstadt | AM2: Keine Datenübernahme möglich | AZ2: 1 | BA2: =SUMIF(A13:A118,$AZ2,$BA13:$BA118) -> 230.71 | BB2: =SUMIF(A13:A118,$AZ2,$BB13:$BB118) -> 1292.63
A3: OM/Außenstelle | E3: =IF(Raumverzeichnis!E2="","",Raumverzeichnis!E3) -> Pionierübungsplatz L/w | BA3: =SUMIF(A13:A118,$AZ3,$BA13:$BA118) -> 0 | BB3: =SUMIF(A13:A118,$AZ3,$BB13:$BB118) -> 0
A4: Objektmanager/~in | E4: =IF(Raumverzeichnis!O3="","",Raumverzeichnis!O3) -> Achatz | BA4: =SUMIF(A13:A118,$AZ4,$BA13:$BA118) -> 0 | BB4: =SUMIF(A13:A118,$AZ4,$BB13:$BB118) -> 0
A5: AbrBer / Lg-Nummer / Lg-Bezeichnung / (Anz. Häuser) | E5: =IF(Raumverzeichnis!E4="","",Raumverzeichnis!E4) -> 1 3615 (14) | BA5: =SUMIF(A13:A118,$AZ5,$BA13:$BA118) -> 0 | BB5: =SUMIF(A13:A118,$AZ5,$BB13:$BB118) -> 0
A6: Stand | E6: =IF(Raumverzeichnis!O2="","",Raumverzeichnis!O2) -> 2026-01-13 | BA6: =SUMIF(A13:A118,$AZ6,$BA13:$BA118) -> 0 | BB6: =SUMIF(A13:A118,$AZ6,$BB13:$BB118) -> 0
A7: Anzahl Räume mit durch Dritte zu reinigenden Fenstern | F7: =SUM($I$7:$I$7) -> 52 | I7: =SUM(IF($H$13:$H$117="D",IF(I$13:I$117>0,1,0))) -> 52
A8: m² durch Dritte zu reinigende einfache Fensterfläche | F8: =SUM($I$8:$I$8) -> 230.71 | I8: =SUMIF($H$13:$H$117,"=D",$I$13:$I$117) -> 230.71
A9: Anzahl Räume mit Fenster nach Filter | I9: =SUBTOTAL(3,I$13:I$117) -> 105
A10: m² Fensterfläche der Räume nach Filter | I10: =SUBTOTAL(9,I$13:I$117) -> 1292.63
A11: AbrBer | B11: Gebäude | C11: Geschoss | D11: Raumnummer | E11: Raumbezeichnung | F11: Nutzungsart Bezeichnung DIN 277 | G11: Fensterart | H11: Rein. durch | I11: EG
A12: 1 | B12: =A12+1 -> 2 | C12: 3 | D12: 4 | E12: 5 | F12: 6 | G12: 7 | H12: 8 | I12: 9 | AJ12: Vergleichs- und Sortierstring | AK12: LGNR/WE-NR
A13: 1 | B13: 1 | C13: EG | D13: 1A | F13: 2.0 Büroarbeit | G13: 1-Einfachfenster | H13: D | I13: 7.5 | J13: D | AJ13: 1 3615 0001- 222EG 000100A 2.0 | AK13: 3615 | BA13: =IF($H13="D",BB13,"") -> 7.5 | BB13: =SUM($I13:$I13) -> 7.5 | BC13: 222222EG | BE13: 1 | BF13: 0 | BG13: A | BI13: 1########
A14: 1 | B14: 1 | C14: EG | D14: 1B | F14: 2.0 Büroarbeit | G14: 1-Einfachfenster | H14: D | I14: 7.5 | J14: N | AJ14: 1 3615 0001- 222EG 000100B 2.0 | AK14: 3615 | BA14: 7.5 | BB14: 7.5 | BC14: 222222EG | BE14: 1 | BF14: 0 | BG14: B | BI14: 1########
A15: 1 | B15: 1 | C15: EG | D15: 5A | F15: 2.0 Büroarbeit | G15: 1-Einfachfenster | H15: D | I15: 7.5 | J15: V | AJ15: 1 3615 0001- 222EG 000500A 2.0 | AK15: 3615 | BA15: 7.5 | BB15: 7.5 | BC15: 222222EG | BE15: 5 | BF15: 0 | BG15: A | BI15: 1########
A16: 1 | B16: 1 | C16: EG | D16: löschen | F16: 2.0 Büroarbeit | G16: 1-Einfachfenster | H16: N | I16: 1 | AJ16: 1 3615 0001- 222EGlös000000 2.0 | AK16: 3615 | BB16: 1 | BC16: 222222EG | BD16: löschen | BI16: 1########
A17: 1 | B17: 1 | C17: EG | D17: Tor 1 und 2 | F17: 3.0 Produktion, Hand- und Maschinenarbeit, Forschung und Entwicklung | G17: 1-Einfachfenster | H17: N | I17: 24.5 | AJ17: 1 3615 0001- 222EGTor000100un3.0 | AK17: 3615 | BB17: 24.5 | BC17: 222222EG | BD17: Tor | BE17: 1 | BF17: 0 | BG17: und 2 | BI17: 1########
A18: 1 | B18: 1 | C18: EG | D18: Tor 3 und 4 | F18: 4.0 Lagern, Verteilen und Verkaufen | G18: 1-Einfachfenster | H18: N | I18: 16 | AJ18: 1 3615 0001- 222EGTor000300un4.0 | AK18: 3615 | BB18: 16 | BC18: 222222EG | BD18: Tor | BE18: 3 | BF18: 0 | BG18: und 4 | BI18: 1########
A19: 1 | B19: 1 | C19: EG | D19: Tor 5 und 6 | F19: 4.0 Lagern, Verteilen und Verkaufen | G19: 1-Einfachfenster | H19: N | I19: 16 | AJ19: 1 3615 0001- 222EGTor000500un4.0 | AK19: 3615 | BB19: 16 | BC19: 222222EG | BD19: Tor | BE19: 5 | BF19: 0 | BG19: und 6 | BI19: 1########
A20: 1 | B20: 1 | C20: EG | D20: Tor 7 | F20: 4.0 Lagern, Verteilen und Verkaufen | G20: 1-Einfachfenster | H20: N | I20: 8 | AJ20: 1 3615 0001- 222EGTor000700 4.0 | AK20: 3615 | BB20: 8 | BC20: 222222EG | BD20: Tor | BE20: 7 | BF20: 0 | BI20: 1########
A21: 1 | B21: 1 | C21: EG | D21: Tor 8 | F21: 4.0 Lagern, Verteilen und Verkaufen | G21: 1-Einfachfenster | H21: N | I21: 8 | AJ21: 1 3615 0001- 222EGTor000800 4.0 | AK21: 3615 | BB21: 8 | BC21: 222222EG | BD21: Tor | BE21: 8 | BF21: 0 | BI21: 1########
A22: 1 | B22: 2 | C22: EG | D22: 01 | F22: 2.0 Büroarbeit | G22: 1-Einfachfenster | H22: D | I22: 3 | AJ22: 1 3615 0002- 222EG 000100 2.0 | AK22: 3615 | BA22: 3 | BB22: 3 | BC22: 222222EG | BE22: 1 | BF22: 0 | BI22: 2########
A23: 1 | B23: 2 | C23: EG | D23: 02 | F23: 9.0 Verkehrsfläche | G23: 1-Einfachfenster | H23: D | I23: 0.5 | AJ23: 1 3615 0002- 222EG 000200 9.0 | AK23: 3615 | BA23: 0.5 | BB23: 0.5 | BC23: 222222EG | BE23: 2 | BF23: 0 | BI23: 2########
A24: 1 | B24: 2 | C24: EG | D24: 04 | F24: 7.1 Sanitärräume | G24: 1-Einfachfenster | H24: D | I24: 0.5 | AJ24: 1 3615 0002- 222EG 000400 7.1 | AK24: 3615 | BA24: 0.5 | BB24: 0.5 | BC24: 222222EG | BE24: 4 | BF24: 0 | BI24: 2########
A25: 1 | B25: 2 | C25: EG | D25: 05 | F25: 7.1 Sanitärräume | G25: 1-Einfachfenster | H25: D | I25: 0.5 | AJ25: 1 3615 0002- 222EG 000500 7.1 | AK25: 3615 | BA25: 0.5 | BB25: 0.5 | BC25: 222222EG | BE25: 5 | BF25: 0 | BI25: 2########
A26: 1 | B26: 2 | C26: EG | D26: 06 | F26: 8.0 Technikfläche | G26: 1-Einfachfenster | H26: N | I26: 0.5 | AJ26: 1 3615 0002- 222EG 000600 8.0 | AK26: 3615 | BB26: 0.5 | BC26: 222222EG | BE26: 6 | BF26: 0 | BI26: 2########
A27: 1 | B27: 3 | C27: EG | D27: 1 | F27: 3.0 Produktion, Hand- und Maschinenarbeit, Forschung und Entwicklung | G27: 1-Einfachfenster | H27: N | I27: 2.08 | AJ27: 1 3615 0003- 222EG 000100 3.0 | AK27: 3615 | BB27: 2.08 | BC27: 222222EG | BE27: 1 | BF27: 0 | BI27: 3########
A28: 1 | B28: 3 | C28: EG | D28: 2 | F28: 1.0 Wohnen und Aufenthalt | G28: 1-Einfachfenster | H28: N | I28: 1.56 | AJ28: 1 3615 0003- 222EG 000200 1.0 | AK28: 3615 | BB28: 1.56 | BC28: 222222EG | BE28: 2 | BF28: 0 | BI28: 3########
A29: 1 | B29: 3 | C29: EG | D29: 3 | F29: 4.0 Lagern, Verteilen und Verkaufen | G29: 1-Einfachfenster | H29: N | I29: 1.56 | AJ29: 1 3615 0003- 222EG 000300 4.0 | AK29: 3615 | BB29: 1.56 | BC29: 222222EG | BE29: 3 | BF29: 0 | BI29: 3########
A30: 1 | B30: 3 | C30: EG | D30: 4 | F30: 3.0 Produktion, Hand- und Maschinenarbeit, Forschung und Entwicklung | G30: 1-Einfachfenster | H30: N | I30: 75 | AJ30: 1 3615 0003- 222EG 000400 3.0 | AK30: 3615 | BB30: 75 | BC30: 222222EG | BE30: 4 | BF30: 0 | BI30: 3########
A31: 1 | B31: 3 | C31: EG | D31: 5 | F31: 4.0 Lagern, Verteilen und Verkaufen | G31: 1-Einfachfenster | H31: N | I31: 11.3 | AJ31: 1 3615 0003- 222EG 000500 4.0 | AK31: 3615 | BB31: 11.3 | BC31: 222222EG | BE31: 5 | BF31: 0 | BI31: 3########
A32: 1 | B32: 3 | C32: EG | D32: 6 | F32: 4.0 Lagern, Verteilen und Verkaufen | G32: 1-Einfachfenster | H32: N | I32: 51 | AJ32: 1 3615 0003- 222EG 000600 4.0 | AK32: 3615 | BB32: 51 | BC32: 222222EG | BE32: 6 | BF32: 0 | BI32: 3########
A33: 1 | B33: 3 | C33: EG | D33: 7 | F33: 4.0 Lagern, Verteilen und Verkaufen | G33: 1-Einfachfenster | H33: N | I33: 77.5 | AJ33: 1 3615 0003- 222EG 000700 4.0 | AK33: 3615 | BB33: 77.5 | BC33: 222222EG | BE33: 7 | BF33: 0 | BI33: 3########
A34: 1 | B34: 3 | C34: EG | D34: 8 | F34: 4.0 Lagern, Verteilen und Verkaufen | G34: 1-Einfachfenster | H34: N | I34: 152.5 | AJ34: 1 3615 0003- 222EG 000800 4.0 | AK34: 3615 | BB34: 152.5 | BC34: 222222EG | BE34: 8 | BF34: 0 | BI34: 3########
A35: 1 | B35: 3 | C35: EG | D35: 9 | F35: 4.0 Lagern, Verteilen und Verkaufen | G35: 1-Einfachfenster | H35: N | I35: 75 | AJ35: 1 3615 0003- 222EG 000900 4.0 | AK35: 3615 | BB35: 75 | BC35: 222222EG | BE35: 9 | BF35: 0 | BI35: 3########
A36: 1 | B36: 3 | C36: EG | D36: 10 | F36: 4.0 Lagern, Verteilen und Verkaufen | G36: 1-Einfachfenster | H36: N | I36: 150 | AJ36: 1 3615 0003- 222EG 001000 4.0 | AK36: 3615 | BB36: 150 | BC36: 222222EG | BE36: 10 | BF36: 0 | BI36: 3########
A37: 1 | B37: 3 | C37: EG | D37: 11 | F37: 4.0 Lagern, Verteilen und Verkaufen | G37: 1-Einfachfenster | H37: N | I37: 150 | AJ37: 1 3615 0003- 222EG 001100 4.0 | AK37: 3615 | BB37: 150 | BC37: 222222EG | BE37: 11 | BF37: 0 | BI37: 3########
A38: 1 | B38: 3 | C38: EG | D38: 11A | F38: 2.0 Büroarbeit | G38: 1-Einfachfenster | H38: D | I38: 10 | AJ38: 1 3615 0003- 222EG 001100A 2.0 | AK38: 3615 | BA38: 10 | BB38: 10 | BC38: 222222EG | BE38: 11 | BF38: 0 | BG38: A | BI38: 3########
A39: 1 | B39: 4 | C39: EG | D39: 02 | F39: 2.0 Büroarbeit | G39: 1-Einfachfenster | H39: D | I39: 25.65 | AJ39: 1 3615 0004- 222EG 000200 2.0 | AK39: 3615 | BA39: 25.65 | BB39: 25.65 | BC39: 222222EG | BE39: 2 | BF39: 0 | BI39: 4########
A40: 1 | B40: 4 | C40: EG | D40: 03 | F40: 2.0 Büroarbeit | G40: 1-Einfachfenster | H40: D | I40: 6.41 | AJ40: 1 3615 0004- 222EG 000300 2.0 | AK40: 3615 | BA40: 6.41 | BB40: 6.41 | BC40: 222222EG | BE40: 3 | BF40: 0 | BI40: 4########
A41: 1 | B41: 4 | C41: EG | D41: 04 a | F41: 2.0 Büroarbeit | G41: 1-Einfachfenster | H41: D | I41: 4.31 | AJ41: 1 3615 0004- 222EG 000400a 2.0 | AK41: 3615 | BA41: 4.31 | BB41: 4.31 | BC41: 222222EG | BE41: 4 | BF41: 0 | BG41: a | BI41: 4########
A42: 1 | B42: 4 | C42: EG | D42: 04 b | F42: 2.0 Büroarbeit | G42: 1-Einfachfenster | H42: D | I42: 6.41 | AJ42: 1 3615 0004- 222EG 000400b 2.0 | AK42: 3615 | BA42: 6.41 | BB42: 6.41 | BC42: 222222EG | BE42: 4 | BF42: 0 | BG42: b | BI42: 4########
A43: 1 | B43: 4 | C43: EG | D43: 05 | F43: 1.0 Wohnen und Aufenthalt | G43: 1-Einfachfenster | H43: D | I43: 4.31 | AJ43: 1 3615 0004- 222EG 000500 1.0 | AK43: 3615 | BA43: 4.31 | BB43: 4.31 | BC43: 222222EG | BE43: 5 | BF43: 0 | BI43: 4########
A44: 1 | B44: 4 | C44: EG | D44: 06 | F44: 7.2 Umkleiden | G44: 1-Einfachfenster | H44: D | I44: 2.16 | AJ44: 1 3615 0004- 222EG 000600 7.2 | AK44: 3615 | BA44: 2.16 | BB44: 2.16 | BC44: 222222EG | BE44: 6 | BF44: 0 | BI44: 4########
A45: 1 | B45: 4 | C45: EG | D45: 07 | F45: 7.1 Sanitärräume | G45: 1-Einfachfenster | H45: D | I45: 2.16 | AJ45: 1 3615 0004- 222EG 000700 7.1 | AK45: 3615 | BA45: =IF($H45="D",BB45,"") -> 2.16 | BB45: =SUM($I45:$I45) -> 2.16 | BC45: 222222EG | BE45: 7 | BF45: 0 | BI45: 4########
A46: 1 | B46: 4 | C46: EG | D46: 08 | F46: 7.1 Sanitärräume | G46: 1-Einfachfenster | H46: D | I46: 2.16 | AJ46: 1 3615 0004- 222EG 000800 7.1 | AK46: 3615 | BA46: 2.16 | BB46: 2.16 | BC46: 222222EG | BE46: 8 | BF46: 0 | BI46: 4########
A47: 1 | B47: 4 | C47: EG | D47: 11 | F47: 8.0 Technikfläche | G47: 1-Einfachfenster | H47: N | I47: 4.31 | AJ47: 1 3615 0004- 222EG 001100 8.0 | AK47: 3615 | BB47: 4.31 | BC47: 222222EG | BE47: 11 | BF47: 0 | BI47: 4########
A48: 1 | B48: 4 | C48: EG | D48: 12 | F48: 4.0 Lagern, Verteilen und Verkaufen | G48: 1-Einfachfenster | H48: N | I48: 1.26 | AJ48: 1 3615 0004- 222EG 001200 4.0 | AK48: 3615 | BB48: 1.26 | BC48: 222222EG | BE48: 12 | BF48: 0 | BI48: 4########
A49: 1 | B49: 4 | C49: EG | D49: 14 | F49: 2.0 Büroarbeit | G49: 1-Einfachfenster | H49: D | I49: 4.32 | AJ49: 1 3615 0004- 222EG 001400 2.0 | AK49: 3615 | BA49: 4.32 | BB49: 4.32 | BC49: 222222EG | BE49: 14 | BF49: 0 | BI49: 4########
A50: 1 | B50: 4 | C50: EG | D50: 15 | F50: 2.0 Büroarbeit | G50: 1-Einfachfenster | H50: D | I50: 2.16 | AJ50: 1 3615 0004- 222EG 001500 2.0 | AK50: 3615 | BA50: 2.16 | BB50: 2.16 | BC50: 222222EG | BE50: 15 | BF50: 0 | BI50: 4########
A51: 1 | B51: 4 | C51: EG | D51: 16 | F51: 7.2 Umkleiden | G51: 1-Einfachfenster | H51: D | I51: 2.16 | AJ51: 1 3615 0004- 222EG 001600 7.2 | AK51: 3615 | BA51: 2.16 | BB51: 2.16 | BC51: 222222EG | BE51: 16 | BF51: 0 | BI51: 4########
A52: 1 | B52: 4 | C52: EG | D52: 17 | F52: 3.8 Küchen | G52: 1-Einfachfenster | H52: D | I52: 2.16 | AJ52: 1 3615 0004- 222EG 001700 3.8 | AK52: 3615 | BA52: 2.16 | BB52: 2.16 | BC52: 222222EG | BE52: 17 | BF52: 0 | BI52: 4########
A53: 1 | B53: 4 | C53: EG | D53: 18 | F53: 2.0 Büroarbeit | G53: 1-Einfachfenster | H53: D | I53: 12.83 | AJ53: 1 3615 0004- 222EG 001800 2.0 | AK53: 3615 | BA53: 12.83 | BB53: 12.83 | BC53: 222222EG | BE53: 18 | BF53: 0 | BI53: 4########
A54: 1 | B54: 4 | C54: EG | D54: 19 | F54: 2.0 Büroarbeit | G54: 1-Einfachfenster | H54: D | I54: 12.83 | AJ54: 1 3615 0004- 222EG 001900 2.0 | AK54: 3615 | BA54: 12.83 | BB54: 12.83 | BC54: 222222EG | BE54: 19 | BF54: 0 | BI54: 4########
A55: 1 | B55: 4 | C55: EG | D55: 20 | F55: 2.0 Büroarbeit | G55: 1-Einfachfenster | H55: D | I55: 6.41 | AJ55: 1 3615 0004- 222EG 002000 2.0 | AK55: 3615 | BA55: 6.41 | BB55: 6.41 | BC55: 222222EG | BE55: 20 | BF55: 0 | BI55: 4########
A56: 1 | B56: 4 | C56: EG | D56: 21 | F56: 2.0 Büroarbeit | G56: 1-Einfachfenster | H56: D | I56: 12.83 | AJ56: 1 3615 0004- 222EG 002100 2.0 | AK56: 3615 | BA56: 12.83 | BB56: 12.83 | BC56: 222222EG | BE56: 21 | BF56: 0 | BI56: 4########
A57: 1 | B57: 5 | C57: EG | D57: 1 | F57: 4.0 Lagern, Verteilen und Verkaufen | G57: 1-Einfachfenster | H57: N | I57: 4.8 | AJ57: 1 3615 0005- 222EG 000100 4.0 | AK57: 3615 | BB57: 4.8 | BC57: 222222EG | BE57: 1 | BF57: 0 | BI57: 5########
A58: 1 | B58: 5 | C58: EG | D58: 2 | F58: 4.0 Lagern, Verteilen und Verkaufen | G58: 1-Einfachfenster | H58: N | I58: 12 | AJ58: 1 3615 0005- 222EG 000200 4.0 | AK58: 3615 | BB58: 12 | BC58: 222222EG | BE58: 2 | BF58: 0 | BI58: 5########
A59: 1 | B59: 5 | C59: EG | D59: 3 | F59: 3.0 Produktion, Hand- und Maschinenarbeit, Forschung und Entwicklung | G59: 1-Einfachfenster | H59: N | I59: 24 | AJ59: 1 3615 0005- 222EG 000300 3.0 | AK59: 3615 | BB59: 24 | BC59: 222222EG | BE59: 3 | BF59: 0 | BI59: 5########
A60: 1 | B60: 5 | C60: EG | D60: 4 | F60: 3.0 Produktion, Hand- und Maschinenarbeit, Forschung und Entwicklung | G60: 1-Einfachfenster | H60: N | I60: 12 | AJ60: 1 3615 0005- 222EG 000400 3.0 | AK60: 3615 | BB60: 12 | BC60: 222222EG | BE60: 4 | BF60: 0 | BI60: 5########
A61: 1 | B61: 5 | C61: EG | D61: 5 | F61: 8.0 Technikfläche | G61: 1-Einfachfenster | H61: N | I61: 1.6 | AJ61: 1 3615 0005- 222EG 000500 8.0 | AK61: 3615 | BB61: 1.6 | BC61: 222222EG | BE61: 5 | BF61: 0 | BI61: 5########
A62: 1 | B62: 5 | C62: EG | D62: 6 | F62: 3.8 Küchen | G62: 1-Einfachfenster | H62: D | I62: 3.3 | AJ62: 1 3615 0005- 222EG 000600 3.8 | AK62: 3615 | BA62: 3.3 | BB62: 3.3 | BC62: 222222EG | BE62: 6 | BF62: 0 | BI62: 5########
A63: 1 | B63: 5 | C63: EG | D63: 9 | F63: 1.0 Wohnen und Aufenthalt | G63: 1-Einfachfenster | H63: D | I63: 4.8 | AJ63: 1 3615 0005- 222EG 000900 1.0 | AK63: 3615 | BA63: 4.8 | BB63: 4.8 | BC63: 222222EG | BE63: 9 | BF63: 0 | BI63: 5########
A64: 1 | B64: 5 | C64: EG | D64: 10 | F64: 4.0 Lagern, Verteilen und Verkaufen | G64: 1-Einfachfenster | H64: N | I64: 9.6 | AJ64: 1 3615 0005- 222EG 001000 4.0 | AK64: 3615 | BB64: 9.6 | BC64: 222222EG | BE64: 10 | BF64: 0 | BI64: 5########
A65: 1 | B65: 5 | C65: EG | D65: 11 | F65: 4.0 Lagern, Verteilen und Verkaufen | G65: 1-Einfachfenster | H65: N | I65: 9.6 | AJ65: 1 3615 0005- 222EG 001100 4.0 | AK65: 3615 | BB65: 9.6 | BC65: 222222EG | BE65: 11 | BF65: 0 | BI65: 5########
A66: 1 | B66: 5 | C66: EG | D66: 12 | F66: 7.9 Sonstige Nutzung | G66: 1-Einfachfenster | H66: N | I66: 2.4 | AJ66: 1 3615 0005- 222EG 001200 7.9 | AK66: 3615 | BB66: 2.4 | BC66: 222222EG | BE66: 12 | BF66: 0 | BI66: 5########
A67: 1 | B67: 5 | C67: EG | D67: 15 | F67: 9.0 Verkehrsfläche | G67: 1-Einfachfenster | H67: N | I67: 4.8 | AJ67: 1 3615 0005- 222EG 001500 9.0 | AK67: 3615 | BB67: 4.8 | BC67: 222222EG | BE67: 15 | BF67: 0 | BI67: 5########
A68: 1 | B68: 6 | C68: EG | D68: 0.01 | F68: 2.0 Büroarbeit | G68: 1-Einfachfenster | H68: N | I68: 1.5 | AJ68: 1 3615 0006- 222EG 0000011 2.0 | AK68: 3615 | BB68: 1.5 | BC68: 222222EG | BE68: 0 | BF68: 1 | BG68: 1 | BI68: 6########
A69: 1 | B69: 6 | C69: EG | D69: 0.02 | F69: 2.0 Büroarbeit | G69: 1-Einfachfenster | H69: N | I69: 2 | AJ69: 1 3615 0006- 222EG 0000022 2.0 | AK69: 3615 | BB69: 2 | BC69: 222222EG | BE69: 0 | BF69: 2 | BG69: 2 | BI69: 6########
A70: 1 | B70: 6 | C70: EG | D70: 0.03 | F70: 7.9 Sonstige Nutzung | G70: 1-Einfachfenster | H70: N | I70: 1.5 | AJ70: 1 3615 0006- 222EG 0000033 7.9 | AK70: 3615 | BB70: 1.5 | BC70: 222222EG | BE70: 0 | BF70: 3 | BG70: 3 | BI70: 6########
A71: 1 | B71: 7 | C71: EG | D71: 0.01 | F71: 2.0 Büroarbeit | G71: 1-Einfachfenster | H71: D | I71: 2.2 | AJ71: 1 3615 0007- 222EG 0000011 2.0 | AK71: 3615 | BA71: 2.2 | BB71: 2.2 | BC71: 222222EG | BE71: 0 | BF71: 1 | BG71: 1 | BI71: 7########
A72: 1 | B72: 7 | C72: EG | D72: 0.03 | F72: 7.1 Sanitärräume | G72: 1-Einfachfenster | H72: D | I72: 0.25 | AJ72: 1 3615 0007- 222EG 0000033 7.1 | AK72: 3615 | BA72: 0.25 | BB72: 0.25 | BC72: 222222EG | BE72: 0 | BF72: 3 | BG72: 3 | BI72: 7########
A73: 1 | B73: 7 | C73: EG | D73: 0.05 | F73: 9.0 Verkehrsfläche | G73: 1-Einfachfenster | H73: D | I73: 0.4 | AJ73: 1 3615 0007- 222EG 0000055 9.0 | AK73: 3615 | BA73: 0.4 | BB73: 0.4 | BC73: 222222EG | BE73: 0 | BF73: 5 | BG73: 5 | BI73: 7########
A74: 1 | B74: 10 | C74: EG | D74: 1 | F74: 2.0 Büroarbeit | G74: 1-Einfachfenster | H74: D | I74: 3.09 | AJ74: 1 3615 0010- 222EG 000100 2.0 | AK74: 3615 | BA74: 3.09 | BB74: 3.09 | BC74: 222222EG | BE74: 1 | BF74: 0 | BI74: 10#######
A75: 1 | B75: 10 | C75: EG | D75: 2 | F75: 8.0 Technikfläche | G75: 1-Einfachfenster | H75: N | I75: 0.48 | AJ75: 1 3615 0010- 222EG 000200 8.0 | AK75: 3615 | BB75: 0.48 | BC75: 222222EG | BE75: 2 | BF75: 0 | BI75: 10#######
A76: 1 | B76: 10 | C76: EG | D76: 3 | F76: 8.0 Technikfläche | G76: 1-Einfachfenster | H76: N | I76: 0.48 | AJ76: 1 3615 0010- 222EG 000300 8.0 | AK76: 3615 | BB76: 0.48 | BC76: 222222EG | BE76: 3 | BF76: 0 | BI76: 10#######
A77: 1 | B77: 10 | C77: EG | D77: 4 | F77: 3.0 Produktion, Hand- und Maschinenarbeit, Forschung und Entwicklung | G77: 1-Einfachfenster | H77: N | I77: 4.53 | AJ77: 1 3615 0010- 222EG 000400 3.0 | AK77: 3615 | BA77: =IF($H77="D",BB77,"") ->  | BB77: =SUM($I77:$I77) -> 4.53 | BC77: 222222EG | BE77: 4 | BF77: 0 | BI77: 10#######
A78: 1 | B78: 11 | C78: EG | D78: 2 | F78: 2.0 Büroarbeit | G78: 1-Einfachfenster | H78: D | I78: 0.64 | AJ78: 1 3615 0011- 222EG 000200 2.0 | AK78: 3615 | BA78: 0.64 | BB78: 0.64 | BC78: 222222EG | BE78: 2 | BF78: 0 | BI78: 11#######
A79: 1 | B79: 11 | C79: EG | D79: 4 | F79: 2.0 Büroarbeit | G79: 1-Einfachfenster | H79: D | I79: 12.19 | AJ79: 1 3615 0011- 222EG 000400 2.0 | AK79: 3615 | BA79: 12.19 | BB79: 12.19 | BC79: 222222EG | BE79: 4 | BF79: 0 | BI79: 11#######
A80: 1 | B80: 13 | C80: EG | D80: 1A | F80: 7.9 Sonstige Nutzung | G80: 1-Einfachfenster | H80: N | I80: 14 | AJ80: 1 3615 0013- 222EG 000100A 7.9 | AK80: 3615 | BB80: 14 | BC80: 222222EG | BE80: 1 | BF80: 0 | BG80: A | BI80: 13#######
A81: 1 | B81: 13 | C81: EG | D81: 1B | F81: 7.9 Sonstige Nutzung | G81: 1-Einfachfenster | H81: N | I81: 14 | AJ81: 1 3615 0013- 222EG 000100B 7.9 | AK81: 3615 | BB81: 14 | BC81: 222222EG | BE81: 1 | BF81: 0 | BG81: B | BI81: 13#######
A82: 1 | B82: 13 | C82: EG | D82: 2 | F82: 7.9 Sonstige Nutzung | G82: 1-Einfachfenster | H82: N | I82: 14 | AJ82: 1 3615 0013- 222EG 000200 7.9 | AK82: 3615 | BB82: 14 | BC82: 222222EG | BE82: 2 | BF82: 0 | BI82: 13#######
A83: 1 | B83: 13 | C83: EG | D83: 3 | F83: 7.9 Sonstige Nutzung | G83: 1-Einfachfenster | H83: N | I83: 7 | AJ83: 1 3615 0013- 222EG 000300 7.9 | AK83: 3615 | BB83: 7 | BC83: 222222EG | BE83: 3 | BF83: 0 | BI83: 13#######
A84: 1 | B84: 13 | C84: EG | D84: 4 | F84: 7.9 Sonstige Nutzung | G84: 1-Einfachfenster | H84: N | I84: 7 | AJ84: 1 3615 0013- 222EG 000400 7.9 | AK84: 3615 | BB84: 7 | BC84: 222222EG | BE84: 4 | BF84: 0 | BI84: 13#######
A85: 1 | B85: 13 | C85: EG | D85: 5 | F85: 7.9 Sonstige Nutzung | G85: 1-Einfachfenster | H85: N | I85: 7 | AJ85: 1 3615 0013- 222EG 000500 7.9 | AK85: 3615 | BB85: 7 | BC85: 222222EG | BE85: 5 | BF85: 0 | BI85: 13#######
A86: 1 | B86: 13 | C86: EG | D86: 6 | F86: 7.9 Sonstige Nutzung | G86: 1-Einfachfenster | H86: N | I86: 7 | AJ86: 1 3615 0013- 222EG 000600 7.9 | AK86: 3615 | BB86: 7 | BC86: 222222EG | BE86: 6 | BF86: 0 | BI86: 13#######
A87: 1 | B87: 13 | C87: EG | D87: 7 | F87: 7.9 Sonstige Nutzung | G87: 1-Einfachfenster | H87: N | I87: 14 | AJ87: 1 3615 0013- 222EG 000700 7.9 | AK87: 3615 | BB87: 14 | BC87: 222222EG | BE87: 7 | BF87: 0 | BI87: 13#######
A88: 1 | B88: 27 | C88: EG | D88: 1 | F88: 2.0 Büroarbeit | G88: 1-Einfachfenster | H88: D | I88: 0.81 | AJ88: 1 3615 0027- 222EG 000100 2.0 | AK88: 3615 | BA88: 0.81 | BB88: 0.81 | BC88: 222222EG | BE88: 1 | BF88: 0 | BI88: 27#######
A89: 1 | B89: 28 | C89: EG | D89: 0.01 | F89: 5.0 Bildung, Unterricht und Kultur | G89: 1-Einfachfenster | H89: N | I89: 9.06 | AJ89: 1 3615 0028- 222EG 0000011 5.0 | AK89: 3615 | BB89: 9.06 | BC89: 222222EG | BE89: 0 | BF89: 1 | BG89: 1 | BI89: 28#######
A90: 1 | B90: 28 | C90: EG | D90: 0.02 | F90: 5.0 Bildung, Unterricht und Kultur | G90: 1-Einfachfenster | H90: N | I90: 9.06 | AJ90: 1 3615 0028- 222EG 0000022 5.0 | AK90: 3615 | BB90: 9.06 | BC90: 222222EG | BE90: 0 | BF90: 2 | BG90: 2 | BI90: 28#######
A91: 1 | B91: 28 | C91: EG | D91: 0.03 | F91: 5.0 Bildung, Unterricht und Kultur | G91: 1-Einfachfenster | H91: N | I91: 9.06 | AJ91: 1 3615 0028- 222EG 0000033 5.0 | AK91: 3615 | BB91: 9.06 | BC91: 222222EG | BE91: 0 | BF91: 3 | BG91: 3 | BI91: 28#######
A92: 1 | B92: 28 | C92: EG | D92: 0.04 | F92: 5.0 Bildung, Unterricht und Kultur | G92: 1-Einfachfenster | H92: N | I92: 9.06 | AJ92: 1 3615 0028- 222EG 0000044 5.0 | AK92: 3615 | BB92: 9.06 | BC92: 222222EG | BE92: 0 | BF92: 4 | BG92: 4 | BI92: 28#######
A93: 1 | B93: 28 | C93: EG | D93: 0.05 | F93: 5.0 Bildung, Unterricht und Kultur | G93: 1-Einfachfenster | H93: N | I93: 9.06 | AJ93: 1 3615 0028- 222EG 0000055 5.0 | AK93: 3615 | BB93: 9.06 | BC93: 222222EG | BE93: 0 | BF93: 5 | BG93: 5 | BI93: 28#######
A94: 1 | B94: 28 | C94: EG | D94: 0.06 | F94: 5.0 Bildung, Unterricht und Kultur | G94: 1-Einfachfenster | H94: N | I94: 9.06 | AJ94: 1 3615 0028- 222EG 0000066 5.0 | AK94: 3615 | BB94: 9.06 | BC94: 222222EG | BE94: 0 | BF94: 6 | BG94: 6 | BI94: 28#######
A95: 1 | B95: 28 | C95: EG | D95: 0.09 | F95: 5.0 Bildung, Unterricht und Kultur | G95: 1-Einfachfenster | H95: D | I95: 6.21 | AJ95: 1 3615 0028- 222EG 0000099 5.0 | AK95: 3615 | BA95: 6.21 | BB95: 6.21 | BC95: 222222EG | BE95: 0 | BF95: 9 | BG95: 9 | BI95: 28#######
A96: 1 | B96: 28 | C96: EG | D96: 0.10 | F96: 5.0 Bildung, Unterricht und Kultur | G96: 1-Einfachfenster | H96: D | I96: 2.69 | AJ96: 1 3615 0028- 222EG 000010105.0 | AK96: 3615 | BA96: 2.69 | BB96: 2.69 | BC96: 222222EG | BE96: 0 | BF96: 10 | BG96: 10 | BI96: 28#######
A97: 1 | B97: 28 | C97: EG | D97: 0.11 | F97: 5.0 Bildung, Unterricht und Kultur | G97: 1-Einfachfenster | H97: D | I97: 6.21 | AJ97: 1 3615 0028- 222EG 000011115.0 | AK97: 3615 | BA97: 6.21 | BB97: 6.21 | BC97: 222222EG | BE97: 0 | BF97: 11 | BG97: 11 | BI97: 28#######
A98: 1 | B98: 28 | C98: EG | D98: 0.12 | F98: 5.0 Bildung, Unterricht und Kultur | G98: 1-Einfachfenster | H98: D | I98: 2.69 | AJ98: 1 3615 0028- 222EG 000012125.0 | AK98: 3615 | BA98: 2.69 | BB98: 2.69 | BC98: 222222EG | BE98: 0 | BF98: 12 | BG98: 12 | BI98: 28#######
A99: 1 | B99: 28 | C99: EG | D99: 0.13 | F99: 5.0 Bildung, Unterricht und Kultur | G99: 1-Einfachfenster | H99: D | I99: 6.21 | AJ99: 1 3615 0028- 222EG 000013135.0 | AK99: 3615 | BA99: 6.21 | BB99: 6.21 | BC99: 222222EG | BE99: 0 | BF99: 13 | BG99: 13 | BI99: 28#######
A100: 1 | B100: 28 | C100: EG | D100: 0.14 | F100: 5.0 Bildung, Unterricht und Kultur | G100: 1-Einfachfenster | H100: D | I100: 2.69 | AJ100: 1 3615 0028- 222EG 000014145.0 | AK100: 3615 | BA100: 2.69 | BB100: 2.69 | BC100: 222222EG | BE100: 0 | BF100: 14 | BG100: 14 | BI100: 28#######
A101: 1 | B101: 28 | C101: EG | D101: 0.15 | F101: 5.0 Bildung, Unterricht und Kultur | G101: 1-Einfachfenster | H101: D | I101: 6.21 | AJ101: 1 3615 0028- 222EG 000015155.0 | AK101: 3615 | BA101: 6.21 | BB101: 6.21 | BC101: 222222EG | BE101: 0 | BF101: 15 | BG101: 15 | BI101: 28#######
A102: 1 | B102: 28 | C102: EG | D102: 0.16 | F102: 5.0 Bildung, Unterricht und Kultur | G102: 1-Einfachfenster | H102: D | I102: 2.69 | AJ102: 1 3615 0028- 222EG 000016165.0 | AK102: 3615 | BA102: 2.69 | BB102: 2.69 | BC102: 222222EG | BE102: 0 | BF102: 16 | BG102: 16 | BI102: 28#######
A103: 1 | B103: 28 | C103: EG | D103: 0.17 | F103: 5.0 Bildung, Unterricht und Kultur | G103: 1-Einfachfenster | H103: D | I103: 6.21 | AJ103: 1 3615 0028- 222EG 000017175.0 | AK103: 3615 | BA103: 6.21 | BB103: 6.21 | BC103: 222222EG | BE103: 0 | BF103: 17 | BG103: 17 | BI103: 28#######
A104: 1 | B104: 28 | C104: EG | D104: 0.18 | F104: 5.0 Bildung, Unterricht und Kultur | G104: 1-Einfachfenster | H104: D | I104: 2.69 | AJ104: 1 3615 0028- 222EG 000018185.0 | AK104: 3615 | BA104: 2.69 | BB104: 2.69 | BC104: 222222EG | BE104: 0 | BF104: 18 | BG104: 18 | BI104: 28#######
A105: 1 | B105: 28 | C105: EG | D105: 0.19 | F105: 5.0 Bildung, Unterricht und Kultur | G105: 1-Einfachfenster | H105: D | I105: 6.21 | AJ105: 1 3615 0028- 222EG 000019195.0 | AK105: 3615 | BA105: 6.21 | BB105: 6.21 | BC105: 222222EG | BE105: 0 | BF105: 19 | BG105: 19 | BI105: 28#######
A106: 1 | B106: 28 | C106: EG | D106: 0.20 | F106: 5.0 Bildung, Unterricht und Kultur | G106: 1-Einfachfenster | H106: D | I106: 2.69 | AJ106: 1 3615 0028- 222EG 000020205.0 | AK106: 3615 | BA106: 2.69 | BB106: 2.69 | BC106: 222222EG | BE106: 0 | BF106: 20 | BG106: 20 | BI106: 28#######
A107: 1 | B107: 30 | C107: EG | D107: 1 | F107: 2.0 Büroarbeit | G107: 1-Einfachfenster | H107: D | I107: 0.6 | AJ107: 1 3615 0030- 222EG 000100 2.0 | AK107: 3615 | BA107: 0.6 | BB107: 0.6 | BC107: 222222EG | BE107: 1 | BF107: 0 | BI107: 30#######
A108: 1 | B108: 31 | C108: EG | D108: 2 | F108: 2.0 Büroarbeit | G108: 1-Einfachfenster | H108: D | I108: 0.6 | AJ108: 1 3615 0031- 222EG 000200 2.0 | AK108: 3615 | BA108: 0.6 | BB108: 0.6 | BC108: 222222EG | BE108: 2 | BF108: 0 | BI108: 31#######
A109: 1 | B109: 32 | C109: EG | D109: 2 | F109: 2.0 Büroarbeit | G109: 1-Einfachfenster | H109: N | I109: 1.3 | AJ109: 1 3615 0032- 222EG 000200 2.0 | AK109: 3615 | BA109: =IF($H109="D",BB109,"") ->  | BB109: =SUM($I109:$I109) -> 1.3 | BC109: 222222EG | BE109: 2 | BF109: 0 | BI109: 32#######
A110: 1 | B110: 32 | C110: EG | D110: 3 | F110: 2.0 Büroarbeit | G110: 1-Einfachfenster | H110: N | I110: 1.3 | AJ110: 1 3615 0032- 222EG 000300 2.0 | AK110: 3615 | BB110: 1.3 | BC110: 222222EG | BE110: 3 | BF110: 0 | BI110: 32#######
A111: 1 | B111: 33 | C111: EG | D111: 7 | F111: 2.0 Büroarbeit | G111: 1-Einfachfenster | H111: N | I111: 1.3 | AJ111: 1 3615 0033- 222EG 000700 2.0 | AK111: 3615 | BB111: 1.3 | BC111: 222222EG | BE111: 7 | BF111: 0 | BI111: 33#######
A112: 1 | B112: 33 | C112: EG | D112: 8 | F112: 2.0 Büroarbeit | G112: 1-Einfachfenster | H112: N | I112: 1.3 | AJ112: 1 3615 0033- 222EG 000800 2.0 | AK112: 3615 | BB112: 1.3 | BC112: 222222EG | BE112: 8 | BF112: 0 | BI112: 33#######
A113: 1 | B113: 34 | C113: EG | D113: 2 | F113: 7.1 Sanitärräume | G113: 1-Einfachfenster | H113: D | I113: 0.24 | AJ113: 1 3615 0034- 222EG 000200 7.1 | AK113: 3615 | BA113: 0.24 | BB113: 0.24 | BC113: 222222EG | BE113: 2 | BF113: 0 | BI113: 34#######
A114: 1 | B114: 34 | C114: EG | D114: 3 | F114: 7.1 Sanitärräume | G114: 1-Einfachfenster | H114: D | I114: 0.96 | AJ114: 1 3615 0034- 222EG 000300 7.1 | AK114: 3615 | BA114: 0.96 | BB114: 0.96 | BC114: 222222EG | BE114: 3 | BF114: 0 | BI114: 34#######
A115: 1 | B115: 34 | C115: EG | D115: 4 | F115: 7.1 Sanitärräume | G115: 1-Einfachfenster | H115: D | I115: 0.48 | AJ115: 1 3615 0034- 222EG 000400 7.1 | AK115: 3615 | BA115: 0.48 | BB115: 0.48 | BC115: 222222EG | BE115: 4 | BF115: 0 | BI115: 34#######
A116: 1 | B116: 34 | C116: EG | D116: 5 | F116: 7.1 Sanitärräume | G116: 1-Einfachfenster | H116: D | I116: 0.24 | AJ116: 1 3615 0034- 222EG 000500 7.1 | AK116: 3615 | BA116: 0.24 | BB116: 0.24 | BC116: 222222EG | BE116: 5 | BF116: 0 | BI116: 34#######
A117: 1 | B117: 35 | C117: EG | D117: 1 | F117: 7.1 Sanitärräume | G117: 1-Einfachfenster | H117: D | I117: 0.24 | AJ117: 1 3615 0035- 222EG 000100 7.1 | AK117: 3615 | BA117: 0.24 | BB117: 0.24 | BC117: 222222EG | BE117: 1 | BF117: 0 | BI117: 35#######
AJ118: 0000 ZZZZZ 000000 | BC118: ZZZZZZZZZZZZ

Sheet Fehler-Datensätze
A1: LgNr | B1: Liegenschaftsbezeichnung | C1: Haus-Nummer | D1: Gebäudebezeichnung | E1: Geschoss | F1: Raum-Nummer | G1: Raumbezeichnung | H1: Nutzungsart DIN 277 | I1: Bezeichnung DIN 277 | J1: Fußbodenart DIN 277 | K1: Bezeichnung DIN 277 | L1: ReinH | M1: Rein. durch | N1: FbFl | O1: FFl | P1: FArt | Q1: FArt_TXT
A2: 3615 | C2: 7 | E2: EG | F2: 0.03 | H2: 7.1 | I2: Sanitärräume | J2: Z.FB0060 | K2: keramische Fliesen/Platten | L2: 3xwö | M2: D | N2: 4.42 | O2: 0.25 | P2: 1 | Q2: Einfachfenster, unabhängig von der Verglasungsart (Standardfenster) | V2: 3615-0007
A3: 3615 | C3: 7 | E3: EG | F3: 0.04 | H3: 7.1 | I3: Sanitärräume | J3: Z.FB0060 | K3: keramische Fliesen/Platten | L3: 3xwö | M3: D | N3: 2.66 | O3: 0 | P3: 0 | Q3: Kein Fenster | V3: 3615-0007
A4: 3615 | C4: 11 | E4: EG | F4: 3 | H4: 7.1 | I4: Sanitärräume | J4: Z.FB0010 | K4: Anstrich/Lack | L4: 3xwö | M4: D | N4: 1.5 | O4: 0 | P4: 0 | Q4: Kein Fenster | V4: 3615-0011
